Cogmind - Beta 16 @@@ ROGUE MODE // 2025.11.27 @ 17:49:47 // Winter2019/RPGLIKE Player: Willow Result: Destroyed by S-43 Plague with Heavy Machine Gun Performance ------------- Evolutions (9) 4500 Regions Visited (41) 8200 Robots Destroyed (992) 4960 Value Destroyed (54457) 54457 Prototype IDs (185) 3700 Alien Tech Used (8) 1600 Bonus (54201) 54201 TOTAL SCORE: 131618 Bonus ------- Triggered High Security 1500 High Alert Combat Kills 26197 Follower Combat Kills 3433 Destroyed Unchained 1000 Entered Garrisons 400 Network Hubs Disabled 200 Aligned with FarCom 300 Met Imprinter 300 Was Imprinted 300 Acquired ECA 300 Met Zhirov 300 MAIN.C Attacked Warlord 500 Warlord Defense Kills 2908 Met R17 at Cetus 500 Found Hidden Lab 3000 Used Core Reset Matrix 3000 Scanned by Researcher 500 Destroyed MAIN.C Guards 500 Met MAIN.C 5000 Destroyed MAIN.C Shell 5000 Friendly Fire -937 Cogmind --------- Core Integrity 0/1600 Matter 300/300 Energy 1340/1390 System Corruption 0% +Membrane Temperature Cool (0) Movement Hovering (17) Location -1/Command Parts ------- > --- POWER (2) -------- Improved Quantum Reactor Zero-point Reactor > --- PROPULSION (7) --- Cooled Antigrav System Cooled Antigrav System Cooled Antigrav System Cooled Antigrav System Cooled Antigrav System Cooled Antigrav System Cooled Antigrav System > --- UTILITY (14) ----- Experimental Power Amplifier Coolant Network Experimental Energy Well Experimental Targeting Computer Experimental Core Analyzer Experimental Core Analyzer Improved Armor Integrity Analyzer Particle Accelerator Quantum Capacitor Experimental Reaction Control System Graphene Brace AEGIS Remote Shield > --- WEAPON (3) ------- Potential Cannon Cooled Nova Cannon > --- INVENTORY (6) ---- Thermal Barrier Transdimensional Reconstructor Compact HERF Cannon Linear Accelerator Linear Accelerator Peak State ------------ > --- POWER ------------ Improved Quantum Reactor Zero-point Reactor > --- PROPULSION ------- Cooled Antigrav System Cooled Antigrav System Cooled Antigrav System Cooled Antigrav System Cooled Antigrav System Cooled Antigrav System Cooled Antigrav System > --- UTILITY ---------- Experimental Power Amplifier Coolant Network Experimental Energy Well Experimental Targeting Computer Experimental Core Analyzer Experimental Core Analyzer Improved Armor Integrity Analyzer Particle Accelerator Quantum Capacitor Experimental Reaction Control System Graphene Brace AEGIS Remote Shield > --- WEAPON ----------- Potential Cannon Cooled Nova Cannon > --- INVENTORY -------- Protomatter Thermal Barrier Transdimensional Reconstructor Compact HERF Cannon Linear Accelerator [Rating: 238] Favorites ----------- Power Enhanced Nuclear Core Engine Improved Ion Engine Power Core Enhanced Nuclear Core Reactor Vortex Chain Reactor Propulsion Cooled Aerolev Unit Leg Aluminum Leg Hover Unit Cooled Aerolev Unit Flight Unit Xenon Bombardment Thruster Utility Advanced Heat Sink Device Advanced Heat Sink Storage Experimental Energy Well Processor Advanced Targeting Computer Hackware Improved System Shield Protection Experimental Utility Shielding Weapon Long-range Phase Cannon Energy Gun Heavy Particle Gun Energy Cannon Long-range Phase Cannon Ballistic Gun Assault Rifle Ballistic Cannon Linear Accelerator Launcher Heavy Missile Launcher Slashing Weapon Axe Special Melee Weapon Advanced Datajack Build | -11 -10 -10 -9 -9 -9 -8 -8 -8 -7 -7 -7 -7 -7 -7 -6 -6 -6 -6 -6 -6 -6 -6 -6 -5 -5 -5 -5 -4 -4 -4 -4 -4 -3 -3 -3 -3 -2 -2 -2 -1 -1 ------- Run | Yrd Mat Min Mat Min Exi Min Mat Gar Fac Was Fac Low Low Zio Pro Fac Was Fac Ext Cet Arc Hub Gar Fac Upp Upp Zhi Pro Fac Upp Upp War Pro Res Arm Lab Res Qua Sec Acc Com Slots Evolved 21 | 3 . . 5 . . 1 . . 2 . 2 . . . . . . 1 . . . . . . . . . . . . . 3 . 1 . 1 1 . . . 1 Power 1 | . . . 1 . . . . . . . . . . . . . . . . . . . . . . . . . . . . . . . . . . . . . . Propulsion 5 | 1 . . 2 . . . . . . . 1 . . . . . . . . . . . . . . . . . . . . 1 . . . . . . . . . Utility 13 | 1 . . 2 . . 1 . . 2 . 1 . . . . . . 1 . . . . . . . . . . . . . 2 . 1 . 1 . . . . 1 Weapon 2 | 1 . . . . . . . . . . . . . . . . . . . . . . . . . . . . . . . . . . . . 1 . . . . Parts Attached 266 | 7 16 . 12 . 2 3 8 3 20 1 18 . 1 2 1 18 1 14 1 . 1 . . 2 2 1 3 3 17 . 3 6 1 9 17 6 29 2 4 15 17 Power 24 | 1 2 . 2 . . . . 1 3 . 3 . . . . 2 . . . . . . . 1 . . 1 . 1 . . 1 . . . . 4 . . . 2 Engine 7 | 1 1 . 2 . . . . . 2 . 1 . . . . . . . . . . . . . . . . . . . . . . . . . . . . . . Core 5 | . 1 . . . . . . 1 1 . . . . . . 2 . . . . . . . . . . . . . . . . . . . . . . . . . Reactor 12 | . . . . . . . . . . . 2 . . . . . . . . . . . . 1 . . 1 . 1 . . 1 . . . . 4 . . . 2 Propulsion 52 | 2 7 . 3 . . . 5 1 6 . 3 . . . . 4 . 5 . . . . . . . . . 1 4 . . 1 . 3 4 . 2 . . . 1 Treads . | . . . . . . . . . . . . . . . . . . . . . . . . . . . . . . . . . . . . . . . . . . Leg 2 | 2 . . . . . . . . . . . . . . . . . . . . . . . . . . . . . . . . . . . . . . . . . Wheel . | . . . . . . . . . . . . . . . . . . . . . . . . . . . . . . . . . . . . . . . . . . Hover 35 | . 2 . . . . . . . 6 . 3 . . . . 4 . 4 . . . . . . . . . 1 4 . . 1 . 3 4 . 2 . . . 1 Flight 15 | . 5 . 3 . . . 5 1 . . . . . . . . . 1 . . . . . . . . . . . . . . . . . . . . . . . Utility 135 | 2 5 . 3 . 2 2 1 1 6 . 8 . 1 1 1 9 1 8 1 . . . . 1 2 . 2 1 9 . 3 3 1 6 10 3 16 1 2 13 10 Device 78 | 2 4 . 1 . . 2 . . 3 . 4 . 1 1 1 3 1 4 1 . . . . . 1 . 1 . 5 . 3 2 . 2 5 2 8 1 2 10 8 Storage 2 | . . . . . . . . . . . 1 . . . . . . . . . . . . . . . . . . . . . . . . . . . . . 1 Processor 21 | . 1 . 2 . . . 1 . 2 . 1 . . . . 1 . 1 . . . . . 1 1 . . . 1 . . 1 1 1 . . 5 . . . 1 Hackware 31 | . . . . . 2 . . 1 1 . 2 . . . . 4 . 3 . . . . . . . . . 1 3 . . . . 3 5 . 3 . . 3 . Protection 3 | . . . . . . . . . . . . . . . . 1 . . . . . . . . . . 1 . . . . . . . . 1 . . . . . Artifact . | . . . . . . . . . . . . . . . . . . . . . . . . . . . . . . . . . . . . . . . . . . Weapon 55 | 2 2 . 4 . . 1 2 . 5 1 4 . . 1 . 3 . 1 . . 1 . . . . 1 . 1 3 . . 1 . . 3 3 7 1 2 2 4 Energy Gun 14 | 1 2 . 3 . . 1 2 . 3 . . . . . . . . . . . . . . . . . . 1 . . . . . . . 1 . . . . . Energy Cannon 30 | . . . . . . . . . 2 1 2 . . . . 3 . 1 . . . . . . . . . . 3 . . 1 . . 3 2 6 1 2 2 1 Ballistic Gun 4 | 1 . . . . . . . . . . 1 . . . . . . . . . . . . . . . . . . . . . . . . . 1 . . . 1 Ballistic Cannon 2 | . . . . . . . . . . . . . . . . . . . . . . . . . . . . . . . . . . . . . . . . . 2 Launcher 3 | . . . 1 . . . . . . . 1 . . 1 . . . . . . . . . . . . . . . . . . . . . . . . . . . Special Weapon . | . . . . . . . . . . . . . . . . . . . . . . . . . . . . . . . . . . . . . . . . . . Impact Weapon . | . . . . . . . . . . . . . . . . . . . . . . . . . . . . . . . . . . . . . . . . . . Slashing Weapon 1 | . . . . . . . . . . . . . . . . . . . . . . . . . . 1 . . . . . . . . . . . . . . . Piercing Weapon . | . . . . . . . . . . . . . . . . . . . . . . . . . . . . . . . . . . . . . . . . . . Special Melee Weapon 1 | . . . . . . . . . . . . . . . . . . . . . 1 . . . . . . . . . . . . . . . . . . . . Unidentified Prototypes 61 | . . . 1 . . . 2 . 2 1 7 . . . . 2 1 3 . . . . . 1 . . 3 1 4 . . 6 . 2 4 6 4 . 3 . 8 Corrupted Parts 1 | . . . . . . . . . . . . . . . . . . . . . . . . . . . . . . . . . 1 . . . . . . . . System Corruption 9 | . . . . . . . . . . . . . . . . . . . . . . . . . . . . . . . . . 9 . . . . . . . . Parts Lost 10 | . . . . . . . . 2 1 . 3 . . . . 1 . . . . . . . . . . . . 1 . . . . . 1 . 1 . . . . Power 2 | . . . . . . . . 1 1 . . . . . . . . . . . . . . . . . . . . . . . . . . . . . . . . Propulsion 3 | . . . . . . . . . . . 2 . . . . 1 . . . . . . . . . . . . . . . . . . . . . . . . . Utility 5 | . . . . . . . . 1 . . 1 . . . . . . . . . . . . . . . . . 1 . . . . . 1 . 1 . . . . Weapon . | . . . . . . . . . . . . . . . . . . . . . . . . . . . . . . . . . . . . . . . . . . Highest Loss Streak 2 | . . . . . . . . 2 1 . 2 . . . . 1 . . . . . . . . . . . . 1 . . . . . 1 . 1 . . . . To Critical Strikes . | . . . . . . . . . . . . . . . . . . . . . . . . . . . . . . . . . . . . . . . . . . Average Backups 4 | . . 2 2 3 2 3 3 3 3 3 3 3 3 4 4 4 5 4 4 3 3 4 4 4 4 3 3 4 5 6 5 5 6 5 5 2 5 5 6 5 4 Power . | . . . . . . . . . . . . . . . . . . . . . . . . . . . . . . . . . . . . . . . . . . Propulsion . | . . . . . . . . . . . . . . . . . . . . . . . . . . . . . . . . . . . . . . . . . . Utility 3 | . . 1 1 2 1 1 1 2 2 2 2 3 3 4 4 4 5 4 4 3 3 4 4 4 4 3 2 3 4 5 4 3 3 3 3 . 2 3 3 3 1 Weapon . | . . 1 1 1 . 1 . . . . . . . . . . . . . . . . . . . . . . . . . 1 2 2 2 . 2 1 2 1 1 Tool/Special . | . . . . . . . . . . . . . . . . . . . . . . . . . . . . . . . . . . . . . . . . . . Unused Backups 19 | . . . . . 1 . . . . 1 . 1 . 1 1 . . 1 . . 1 . 1 . 1 2 . 1 . 1 . 1 . 3 . . 1 . . . 1 Power . | . . . . . . . . . . . . . . . . . . . . . . . . . . . . . . . . . . . . . . . . . . Propulsion . | . . . . . . . . . . . . . . . . . . . . . . . . . . . . . . . . . . . . . . . . . . Utility 14 | . . . . . . . . . . 1 . . . 1 1 . . 1 . . 1 . 1 . 1 2 . 1 . 1 . 1 . 2 . . . . . . . Weapon 1 | . . . . . 1 . . . . . . . . . . . . . . . . . . . . . . . . . . . . . . . . . . . . Tool/Special 4 | . . . . . . . . . . . . 1 . . . . . . . . . . . . . . . . . . . . . 1 . . 1 . . . 1 Average Slot Usage (%) 96 | . 95 100 93 100 100 99 100 94 97 99 98 100 92 98 100 99 100 99 100 100 100 100 100 99 99 97 90 94 99 100 100 97 95 95 94 93 87 90 87 87 89 Engine 2 | . 10 14 11 16 16 15 15 10 4 6 4 . . . . . . . . . . . . . . . . . . . . . . . . . . . . . . Core 2 | . 1 . . . . . . 3 6 6 4 . . . . 1 11 11 11 11 11 11 11 7 5 5 3 . . . . . . . . . . . . . . Reactor 3 | . . . . . . . . . . . 1 11 11 11 11 9 . . . . . . . 2 5 5 7 10 10 10 10 7 4 4 4 4 4 4 4 4 5 Hover 24 | . 12 . . . . . . . 20 26 28 29 29 29 29 28 29 27 27 27 27 27 27 27 27 27 27 25 30 31 31 30 31 30 29 29 28 28 28 28 26 Flight 3 | . 7 28 32 33 33 32 30 30 5 . . . . . . . . . . . . . . . . . . . . . . . . . . . . . . . . Device 23 | . 16 28 20 16 11 8 15 15 22 25 22 23 20 26 29 24 23 21 22 22 22 22 22 22 21 20 16 20 21 26 28 32 30 26 22 25 27 28 31 28 31 Processor 14 | . 8 . 9 16 11 7 7 7 15 13 11 17 17 13 11 11 11 13 16 16 16 16 16 16 16 16 16 15 15 15 12 10 13 20 21 20 19 20 16 16 13 Hackware 6 | . . . . . 9 15 15 10 6 6 10 5 5 5 5 9 11 11 11 11 11 11 11 11 11 11 11 10 9 5 5 4 4 4 7 3 . . . 3 1 Energy Gun 3 | . 26 28 18 16 16 15 15 15 9 . . . . . . . . . . . . . . . . . . 4 . . . . . . . . . . . . . Energy Cannon 7 | . . . . . . . . . 3 13 11 11 5 5 5 9 11 11 11 11 10 11 11 11 11 9 1 5 9 10 10 9 9 8 8 7 7 10 7 7 6 Peak Build Rating 238 | 9 15 14 24 24 30 35 44 45 64 67 90 90 89 85 84 99 101 103 103 99 99 99 99 108 108 108 107 111 131 131 134 170 168 180 197 207 217 211 214 217 238 Average Rating 118 | 5 8 14 20 23 27 30 42 43 58 65 75 89 80 81 82 89 97 95 99 99 98 99 99 104 107 104 91 108 123 130 132 150 167 173 187 190 212 208 212 214 229 On Entrance 101 | . 9 14 14 24 24 29 35 44 45 64 67 90 89 81 82 84 97 97 99 99 99 99 99 99 108 108 93 107 108 131 131 134 168 166 180 193 207 211 211 214 216 Avg Prop Armor Cover (%) 4 | . 5 . 3 . . . . . 5 4 . . . . . 8 . . . . . . . . . . . . . . . . . . . . 2 . . . . Naked Turns . | . . . . . . . . . . . . . . . . . . . . . . . . . . . . . . . . . . . . . . . . . . Heaviest Build 112 | 9 13 12 23 23 23 23 23 22 36 39 52 52 51 49 49 51 43 43 40 40 40 40 40 44 44 44 48 50 56 54 59 79 70 68 73 78 91 92 92 103 112 Greatest Support 153 | 20 20 13 23 23 23 23 29 29 46 46 55 53 53 53 53 59 58 58 50 50 50 50 70 50 50 50 50 51 83 62 62 96 84 125 117 143 143 143 111 111 153 Greatest Overweight (x) 1 | . 1 . . . . . . . 1 1 1 . . . . 1 . . . . . . . . . . . 1 . . . 1 . . . . 1 . . . 1 Average Overweight (x) . | . . . . . . . . . . . . . . . . . . . . . . . . . . . . . . . . . . . . . . . . . . Largest Inventory Capacity 6 | . 2 2 3 3 3 3 3 3 4 4 4 4 4 4 4 5 5 5 5 5 5 5 5 6 6 6 6 6 6 6 6 6 6 6 6 6 6 6 6 6 6 Average Capacity 4 | . . 2 2 3 3 3 3 3 3 4 4 4 4 4 4 4 5 5 5 5 5 5 5 5 6 6 6 6 6 6 6 6 6 6 6 6 6 6 6 6 6 Most Carried 6 | . 2 2 3 3 3 3 3 3 4 4 4 4 4 4 4 5 5 5 5 5 5 5 5 6 5 5 6 6 6 6 6 6 6 6 6 6 6 6 6 6 6 Average Carried 4 | . . 2 2 3 2 3 2 3 3 3 3 3 3 3 4 4 5 4 4 4 4 5 4 5 4 4 4 5 5 5 5 5 6 5 5 2 5 5 5 5 5 Final Capacity 6 | . 2 2 3 3 3 3 3 3 4 4 4 4 4 4 4 5 5 5 5 5 5 5 5 6 6 6 6 6 6 6 6 6 6 6 6 6 6 6 6 6 6 Final Carried 6 | . 2 2 3 3 3 3 3 3 4 4 3 4 4 4 4 5 5 4 5 4 5 5 5 5 5 3 6 5 6 6 5 6 6 6 6 6 6 6 6 6 5 Class Distribution -------------------- 29% | Hacker-Scout 23% | Hacker-Mutant 21% | Hacker-Sprinter 7% | Scavenger-Sprinter 6% | Machinist-Scout 4% | Machinist-Sprinter Dominant Class ---------------- Scavenger-Mutant | -10/Materials Scavenger-Sprinter | -10/Mines Scavenger-Sprinter | -9/Materials Scavenger-Sprinter | -9/Mines Hacker-Sprinter | -9/Exiles Hacker-Sprinter | -8/Mines Hacker-Sprinter | -8/Materials Hacker-Sprinter | -8/Garrison Hacker-Mutant | -7/Factory Machinist-Mutant | -7/Waste Hacker-Mutant | -7/Factory Hacker-Scout | -7/Lower Caves Hacker-Mutant | -7/Lower Caves Hacker-Mutant | -7/Zion Hacker-Mutant | -6/Proximity Caves Hacker-Mutant | -6/Factory Hacker-Mutant | -6/Waste Hacker-Mutant | -6/Factory Hacker-Scout | -6/Extension Hacker-Scout | -6/Cetus Hacker-Scout | -6/Archives Hacker-Scout | -6/Hub_04(d) Hacker-Scout | -6/Garrison Hacker-Scout | -5/Factory Hacker-Scout | -5/Upper Caves Hacker-Scout | -5/Upper Caves Hacker-Scout | -5/Zhirov Hacker-Scout | -4/Proximity Caves Hacker-Scout | -4/Factory Hacker-Scout | -4/Upper Caves Hacker-Scout | -4/Upper Caves Hacker-Mutant | -4/Warlord Hacker-Sprinter | -3/Proximity Caves Hacker-Sprinter | -3/Research Hacker-Sprinter | -3/Armory Machinist-Sprinter | -3/Lab Machinist-Scout | -2/Research Machinist-Scout | -2/Quarantine Machinist-Scout | -2/Section 7 Hacker-Scout | -1/Access Scavenger-Sprinter | -1/Command Resources | -11 -10 -10 -9 -9 -9 -8 -8 -8 -7 -7 -7 -7 -7 -7 -6 -6 -6 -6 -6 -6 -6 -6 -6 -5 -5 -5 -5 -4 -4 -4 -4 -4 -3 -3 -3 -3 -2 -2 -2 -1 -1 ----------- Run | Yrd Mat Min Mat Min Exi Min Mat Gar Fac Was Fac Low Low Zio Pro Fac Was Fac Ext Cet Arc Hub Gar Fac Upp Upp Zhi Pro Fac Upp Upp War Pro Res Arm Lab Res Qua Sec Acc Com Matter Collected 5497 | 240 258 . 220 60 . 50 90 30 270 40 307 17 10 20 10 305 . 290 67 30 20 10 . 30 40 . . 152 185 10 30 160 . 180 375 . 747 50 270 330 594 Remotely . | . . . . . . . . . . . . . . . . . . . . . . . . . . . . . . . . . . . . . . . . . . Salvage Created 50069 | 14 894 93 937 44 . 546 1511 1003 1083 280 3069 402 25 . 265 1762 1062 1099 2324 557 603 1047 1049 518 578 264 . 1314 1491 455 277 1098 1116 2338 2492 . 5810 258 2373 887 9131 Parts 2256 | 5 65 7 52 . . 16 77 42 60 10 132 30 15 . 13 72 10 50 51 20 31 40 50 21 26 7 . 37 57 5 20 41 47 154 115 . 263 20 94 50 451 Haulers Intercepted 12 | . 2 . 3 . . . 3 . . . 2 . . . . . . . . . . 1 . . . . . . . . . . . . . . . . . 1 . Recyclers Shooed 1 | . . . . . . 1 . . . . . . . . . . . . . . . . . . . . . . . . . . . . . . . . . . . Parts Field Recycled . | . . . . . . . . . . . . . . . . . . . . . . . . . . . . . . . . . . . . . . . . . . Retrieved Matter . | . . . . . . . . . . . . . . . . . . . . . . . . . . . . . . . . . . . . . . . . . . Parts Self-Destructed 152 | . . . . . . . . . . . . 26 7 . 13 . . . . . . . . . 32 7 . 41 . 11 4 . 11 . . . . . . . . Prevented 42 | . . . . . . . . . . . . . . . . . . . . . . . . . . . . . . 1 6 . 35 . . . . . . . . Parts Restored . | . . . . . . . . . . . . . . . . . . . . . . . . . . . . . . . . . . . . . . . . . . Kills | -11 -10 -10 -9 -9 -9 -8 -8 -8 -7 -7 -7 -7 -7 -7 -6 -6 -6 -6 -6 -6 -6 -6 -6 -5 -5 -5 -5 -4 -4 -4 -4 -4 -3 -3 -3 -3 -2 -2 -2 -1 -1 ------- Run | Yrd Mat Min Mat Min Exi Min Mat Gar Fac Was Fac Low Low Zio Pro Fac Was Fac Ext Cet Arc Hub Gar Fac Upp Upp Zhi Pro Fac Upp Upp War Pro Res Arm Lab Res Qua Sec Acc Com Combat Hostiles Destroyed 835 | . 26 4 18 9 . 10 27 23 21 2 53 13 4 . 7 34 . 17 23 8 4 16 33 7 9 4 . 20 24 1 13 19 13 43 35 . 93 6 26 15 155 Guns 129 | . 24 4 17 4 . 10 25 21 12 . . . . . . . . . . . . . . . . . . 12 . . . . . . . . . . . . . Cannons 526 | . . . . . . . . . 9 2 46 12 4 . 7 25 . 15 16 7 4 12 30 7 9 4 . 5 19 1 13 16 6 36 27 . 71 2 12 11 98 AOE 67 | . . . . 5 . . . . . . 3 . . . . 6 . 2 . . . . . . . . . . 2 . . . . . . . 16 2 . 2 29 Classes Destroyed 36 | 1 7 . 3 1 . 2 1 . 1 1 3 2 2 . 1 1 . 1 . . . 1 . . . . . . . . 1 1 . . . . 1 1 . . 4 Worker 37 | . 1 . . . . . . . 1 . 5 . . . . 1 . 2 . . . 3 . . . . . . 3 . . . . 3 . . 11 2 1 1 3 Builder 9 | . . . . . . . 1 . . . 1 . . . . 1 . . . . . . . . . . . . . . . . . 2 . . 4 . . . . Tunneler 8 | 1 . . . . . . 1 . . . . . . . . . . 1 1 . . . . . . . . . . . . . . 1 . . 3 . . . . Hauler 12 | . 2 . 3 . . . 3 . . . 2 . . . . . . . . . . 1 . . . . . . . . . . . . . . . . . 1 . Recycler 19 | . . . 1 . . . . . 2 . 5 . . . . 2 . . 5 . . . . . . . . . 2 . . . . 1 . . 1 . . . . Carrier 1 | . . . . . . . . . . . . . . . . . . . . . . . . . . . . . . . . . . . . . 1 . . . . Mechanic 1 | . . . . . . . . . . . 1 . . . . . . . . . . . . . . . . . . . . . . . . . . . . . . Operator 21 | . 1 . . . . . 1 . 1 . 1 . . . . 2 . 2 . . 7 . . . . . . . 1 . . . . . . . 2 . 1 . 2 Drone 9 | . . . . . . . . . . . . . . . 2 . . . . . . . . . . . . 2 . . . 1 . . . . 4 . . . . Watcher 55 | . 3 . 4 . . . 3 . 1 . 1 . . . . . . 2 3 2 . 3 . . . . . . 3 . . . . 6 2 . 8 1 5 2 6 Swarmer 171 | . 3 . . . . . 6 4 . . 1 6 3 . 3 15 . 3 . . . . 18 . . . . 10 13 . 8 2 2 12 1 . 18 . 1 8 34 Cutter 17 | . . . . . . . . . . . . . . . . 3 . . . . . . 2 . . . . . . . . . . . 1 . 7 . . . 4 Saboteur 2 | . . . . . . . . . . . . . . . . . . . . . . . . . . . . . . . . . . . . . . . . . 2 Grunt 260 | . 21 4 12 . . 8 12 13 10 . 32 4 . . 2 9 . 6 11 . . 8 8 . 2 . . 7 1 . . 4 6 14 9 . 27 . 5 3 22 Brawler 12 | . . . 1 . . . 1 . . . 1 . . . . . . 1 . . . . . . . . . . . . . 1 . . . . 3 . . . 4 Duelist 16 | . . . . . . 1 . . . . 3 . . . . . . . . . . . . . 1 . . . . . . 1 1 2 1 . 3 . . . 3 Protector 8 | . . . . . . . . . . . . . . . . . . . . . . . . . . . . . . . . . . . . . . . . . 8 Sentry 99 | . . . 5 . . . 6 6 6 . 4 1 . . . 4 . 4 4 . 4 5 5 5 1 . . 1 6 1 . . 1 5 6 . 8 . 6 2 3 Demolisher 5 | . . . . . . . . . . . . . . . . . . . 2 . . . . . . . . . . . . 2 . . 1 . . . . . . Specialist 7 | . . . . . . . . . . . 3 . . . . . . . 1 . . . . . . . . . . . . . . . . . . . . . 3 Hunter 64 | . . . . . . 1 2 . . . 5 . . . . . . . 3 . . . . . 3 2 . . . . . 3 2 1 11 . 8 2 4 . 17 Programmer 98 | . . . . . . . . . 5 . 3 . . . . 3 . 2 . . . 1 . 2 2 2 . . 4 . . 2 . 9 3 . 12 3 6 2 37 Heavy 6 | . . . . . . . . . . . 1 . . . . . . . . . . . . . . . . . . . . . . . 1 . 2 . 1 . 1 Behemoth 4 | . . . . . . . . . . . . 1 . . . . . . 1 . . . . . . . . . . . . . 1 . . . 1 . . . . Compactor 2 | . . . . . . . . . . 2 . . . . . . . . . . . . . . . . . . . . . . . . . . . . . . . Cetus Guard 8 | . . . . . . . . . . . . . . . . . . . . 8 . . . . . . . . . . . . . . . . . . . . . S7 Guard 1 | . . . . . . . . . . . . . . . . . . . . . . . . . . . . . . . . . . . . . . . 1 . . M Guard 2 | . . . . . . . . . . . . . . . . . . . . . . . . . . . . . . . . . . . . . . . . . 2 Hotshot 2 | . . . . . . . . . . . . . . . . . . . 1 . . 1 . . . . . . . . . . . . . . . . . . . Combat Programmer 2 | . . . . . . . . . . . . . . . . . . . . . . . . . . . . . . . . . . . . . . . . . 2 Investigator 1 | . . . . . . . . . . . . . . . . . . . . . . . . . . . . . . . . . . . . . . . . . 1 Striker 11 | . . . . . . . . . . . . . . . . . . . . . . 1 . . . . . . . . . 3 . . . . . . . . 7 Executioner 7 | . . . . . . . . . . . . . . . . . . . . . . . . . . . . . . . . 1 . . . . . . 2 . 4 Alpha 7 1 | . . . . . . . . . . . . . . . . . . . . . . . . . . . . . . . . . . . . . . . . . 1 Fortress 1 | . . . . . . . . . . . . . . . . . . . . . . . . . . . . . . . . . . . . . . 1 . . . Subdweller 2 | . 2 . . . . . . . . . . . . . . . . . . . . . . . . . . . . . . . . . . . . . . . . Decomposer 1 | . . . . . . . . . . . . 1 . . . . . . . . . . . . . . . . . . . . . . . . . . . . . Tinkerer 2 | . . . . . . . . . . . . . 1 . . . . . . . . . . . . . . 1 . . . . . . . . . . . . . Master Thief 2 | . . . . . . . . . . . . . 1 . . . . . . . . . . . . . . . . . 1 . . . . . . . . . . Assembled 11 | . . . . 9 . . . . . . . . . . . . . . . . . . . . . . . . . . . . . . . . . . . . 2 Thug 3 | . . . . . . . . . . . . . . . . 2 . . . . . . . . . . . . . . 1 . . . . . . . . . . Martyr 1 | . . . . . . . . . . . . . . . . . . 1 . . . . . . . . . . . . . . . . . . . . . . . Fireman 3 | . . . . . . . . . . . . . . . . . . . . . . . . . . . . . . . 3 . . . . . . . . . . Mutant 1 | . . . . . . . . . . . . 1 . . . . . . . . . . . . . . . . . . . . . . . . . . . . . Best Kill Streak 27 | 1 6 2 8 8 . 3 10 4 7 1 8 7 3 . 3 7 . 5 5 4 11 6 8 2 5 2 . 4 8 1 4 8 3 17 5 . 20 18 8 4 27 Combat Bots Only 27 | . 5 2 5 8 . 3 9 4 7 1 7 7 3 . 3 7 . 5 4 4 4 4 8 2 5 2 . 4 8 1 4 8 3 15 5 . 13 15 6 4 27 Max Kills in Single Turn 4 | 1 2 1 2 2 . 1 2 2 2 1 4 1 1 . 1 4 . 3 2 1 1 4 2 1 1 1 . 2 2 1 1 1 1 2 1 . 4 2 1 2 4 Gunslinging 1 | . 1 . . . . . 1 . . . . . . . . . . . . . . . . . . . . . . . . . . . . . . . . . . Exploded 4 | . . . . 2 . . . . . . 3 . . . . 3 . 2 . . . . . . . . . . 2 . . . . . . . 3 2 . 2 4 Melee . | . . . . . . . . . . . . . . . . . . . . . . . . . . . . . . . . . . . . . . . . . . Uniques/NPCs Destroyed 2 | . . . . . . . . . . . . . . . . . . . . . . . . . . . . . . . . . . . 1 . . . . . 1 6S-H0T (-3/Armory) MAIN.C Shell (-1/Command) Combat | -11 -10 -10 -9 -9 -9 -8 -8 -8 -7 -7 -7 -7 -7 -7 -6 -6 -6 -6 -6 -6 -6 -6 -6 -5 -5 -5 -5 -4 -4 -4 -4 -4 -3 -3 -3 -3 -2 -2 -2 -1 -1 -------- Run | Yrd Mat Min Mat Min Exi Min Mat Gar Fac Was Fac Low Low Zio Pro Fac Was Fac Ext Cet Arc Hub Gar Fac Upp Upp Zhi Pro Fac Upp Upp War Pro Res Arm Lab Res Qua Sec Acc Com Hostile Shots Fired 4493 | . 104 21 53 38 . 37 97 92 206 . 337 58 16 . 32 230 . 100 158 70 4 116 201 19 59 64 . 85 75 . 33 124 53 242 203 . 367 18 66 37 1078 Missed 2365 | . 30 12 19 14 . 15 45 41 107 . 171 18 6 . 20 119 . 64 89 32 2 62 108 8 36 32 . 37 45 . 17 74 37 122 93 . 208 12 40 26 604 Intercepted 4 | . . . . . . . . . . . . . . . . . . . . . . . . . . . . . . . . . . . . . . . . . 4 Hits 2128 | . 74 9 34 24 . 22 52 51 99 . 166 40 10 . 12 111 . 36 69 38 2 54 93 11 23 32 . 48 30 . 16 50 16 120 110 . 159 6 26 11 474 Melee 40 | . . . . . . 1 . . . . 2 1 5 . . 3 . . . . . . . . . 7 . . . . . 1 . 2 . . 6 . . . 12 Projectile 2088 | . 74 9 34 24 . 21 52 51 99 . 164 39 5 . 12 108 . 36 69 38 2 54 93 11 23 25 . 48 30 . 16 49 16 118 110 . 153 6 26 11 462 AOE 37 | . . . . 10 . . . . 1 . . . . . . 1 . 2 . . . . 2 . . . . . . . . 5 . . 2 . 3 . . . 11 Critical Strikes 126 | . . . . . . 1 . 2 1 . 4 . . . . 6 . 1 . 8 . 1 . . . . . 6 1 . 1 2 1 16 14 . 24 . 1 . 36 Actively Blocked 91 | . . . . . . . . . . . . . . . . . . . . . . . . . . . . . . . 1 1 1 16 12 . 24 . 1 . 35 Part Disruptions 9 | . . . . . . . . . . . 1 . . . . . . . . . . . . . . . . . . . 1 1 . 1 . . 2 . . . 3 Actively Blocked 3 | . . . . . . . . . . . . . . . . . . . . . . . . . . . . . . . . . . . . . . . . . 3 Damage Taken 34233 | . 796 113 432 544 . 336 674 688 1327 . 2567 538 80 . 152 1648 . 540 872 825 33 652 876 221 327 438 . 730 647 60 186 1480 272 2184 2038 . 3944 102 734 179 6998 Core 27608 | . 655 92 366 431 . 287 548 558 1109 . 2063 425 61 . 123 1324 . 447 713 674 25 521 697 186 262 345 . 593 513 60 146 1190 216 1752 1668 . 3149 83 602 144 5580 Absorbed by Shields 6326 | . . . . . . . . . . . . . . . . . . . . . . . . . . . . . . . . . . . . . . . . 28 6298 Redirected to Core 23119 | . 468 73 221 387 . 165 428 431 796 . 1748 396 61 . 89 1119 . 323 552 551 25 457 592 123 228 313 . 480 490 . 136 1046 198 1532 1316 . 2845 66 481 128 4855 Ignored by Resistances 5473 | . 76 9 34 15 . 22 52 51 106 . 176 40 10 . 21 201 . 82 178 167 6 116 179 28 62 59 . 155 124 11 39 158 59 355 392 . 501 12 108 36 1833 Regen/Repaired (Parts) 1113 | . . . . . . . . . 51 65 27 . . . . 78 . . . . . . . . . . . . . . . . . . 2 . . . 890 . . Core Remaining (%) 80 | 100 . 66 . . . 44 . 61 . . . . . . 68 . . . . . . . 96 . . . . 91 . . . . 79 . . 100 . . 98 . . Volleys Fired 2661 | 1 85 12 59 16 . 30 95 80 59 19 113 27 19 1 28 85 7 53 96 46 22 62 77 46 26 29 . 51 63 6 24 62 37 172 89 3 283 14 113 54 497 Largest 2 | 2 2 2 2 2 . 2 2 2 2 2 2 2 2 1 1 2 2 2 2 2 2 2 2 2 2 2 . 2 2 2 2 2 2 2 2 1 1 1 1 1 2 Hottest 350 | 70 130 130 130 112 . 125 125 110 160 170 210 210 210 105 105 195 195 195 210 210 140 210 140 140 140 140 . 116 123 193 193 123 123 123 214 94 200 200 120 200 350 Shots Fired 4030 | 2 170 24 113 28 . 60 190 147 118 38 220 53 28 1 28 138 14 95 173 74 39 115 141 74 51 53 . 96 106 8 48 116 52 291 151 3 283 14 113 54 508 Gun 855 | 2 170 24 111 24 . 60 190 147 82 . . . . . . . . . . . . . . . . . . 45 . . . . . . . . . . . . . Cannon 3169 | . . . . . . . . . 36 38 220 53 28 1 28 138 14 95 173 74 39 115 141 74 51 53 . 51 106 8 48 116 52 291 151 3 283 14 113 54 508 Launcher 6 | . . . 2 4 . . . . . . . . . . . . . . . . . . . . . . . . . . . . . . . . . . . . . Special . | . . . . . . . . . . . . . . . . . . . . . . . . . . . . . . . . . . . . . . . . . . Kinetic 24 | 1 5 . . . . . . . . . . . . . . . . . . . . . . . . . . . . . . . . . . . . . . . 18 Thermal 3324 | 1 165 24 111 24 . 60 190 147 118 38 220 53 28 1 28 133 14 95 173 74 39 115 141 74 51 53 . 96 61 4 24 56 16 172 89 . 205 3 30 40 358 Explosive 6 | . . . 2 4 . . . . . . . . . . . . . . . . . . . . . . . . . . . . . . . . . . . . . Electromagnetic 673 | . . . . . . . . . . . . . . . . 5 . . . . . . . . . . . . 45 4 24 60 36 119 60 3 78 10 83 14 132 Entropic 3 | . . . . . . . . . . . . . . . . . . . . . . . . . . . . . . . . . . . 2 . . 1 . . . Robot Hit Streak 53 | 1 13 12 16 19 . 15 25 25 22 17 32 22 5 . 6 25 21 25 36 25 18 25 26 29 31 7 . 26 27 7 20 14 11 25 53 . 36 9 22 27 32 Robot Miss Streak 6 | 1 4 2 2 3 . 2 2 3 2 1 2 2 5 . 3 4 . 1 2 1 2 2 3 . 1 2 . 4 3 1 1 5 1 2 3 . 6 1 2 2 3 Penetration Max . | . . . . . . . . . . . . . . . . . . . . . . . . . . . . . . . . . . . . . . . . . . Secondary Targets 15 | . 2 . 5 . . 3 2 3 . . . . . . . . . . . . . . . . . . . . . . . . . . . . . . . . . Max Gunslinging Chain 1 | . 1 . 1 . . 1 1 1 . . . . . . . . . . . . . . . . . . . . . . . . . . . . . . . . . Capacitor 944 | . . . . . . . . . . . . . . . . . . . . . . . . . . . . . . . . . . . . . 278 14 113 54 485 Shots Hit Robots 2872 | 1 112 19 89 15 . 45 150 86 86 32 156 31 13 . 18 100 13 73 139 62 29 78 105 24 32 38 . 60 66 7 37 87 40 164 107 . 210 10 79 33 426 Core Hits 1373 | 1 48 9 34 27 . 23 56 36 47 7 74 15 6 . 9 47 4 34 58 22 17 33 41 11 17 6 . 31 31 2 13 32 17 68 48 . 145 7 34 19 244 Critical Kills 37 | . . . . . . . . . . . 5 1 . . . 4 . . 7 . 2 3 2 . . . . 3 . . . . . 1 1 . 2 1 . . 5 Critical Parts Destroyed . | . . . . . . . . . . . . . . . . . . . . . . . . . . . . . . . . . . . . . . . . . . Critical Strikes 110 | . 12 2 12 1 . 6 9 8 4 . 5 1 . . . 4 . . 7 . 2 3 2 . . . . 9 1 . 1 2 . 2 3 . 5 1 . . 8 Burn 60 | . 12 2 12 1 . 6 9 8 4 . . . . . . . . . . . . . . . . . . 6 . . . . . . . . . . . . . Meltdown 37 | . . . . . . . . . . . 5 1 . . . 4 . . 7 . 2 3 2 . . . . 3 . . . . . 1 1 . 2 1 . . 5 Corrupt 12 | . . . . . . . . . . . . . . . . . . . . . . . . . . . . . 1 . 1 2 . 1 1 . 3 . . . 3 Sunder 1 | . . . . . . . . . . . . . . . . . . . . . . . . . . . . . . . . . . . 1 . . . . . . Melee Attacks 1 | . . . . . . . . . . . . . . . . . . . . . 1 . . . . . . . . . . . . . . . . . . . . Impact . | . . . . . . . . . . . . . . . . . . . . . . . . . . . . . . . . . . . . . . . . . . Slashing . | . . . . . . . . . . . . . . . . . . . . . . . . . . . . . . . . . . . . . . . . . . Piercing . | . . . . . . . . . . . . . . . . . . . . . . . . . . . . . . . . . . . . . . . . . . Sneak Attacks 1 | . . . . . . . . . . . . . . . . . . . . . 1 . . . . . . . . . . . . . . . . . . . . Combat Hostiles . | . . . . . . . . . . . . . . . . . . . . . . . . . . . . . . . . . . . . . . . . . . Follow-up Attacks . | . . . . . . . . . . . . . . . . . . . . . . . . . . . . . . . . . . . . . . . . . . Damage Inflicted 145215 | 10 1701 286 1386 592 . 746 3066 1834 2156 943 7159 1195 545 . 709 5153 477 2999 5293 2547 1072 3605 4193 1083 1244 1563 . 2498 3878 542 1695 4042 1864 10296 6695 . 19392 1258 4601 2127 34770 Guns 11764 | 10 1701 286 1386 233 . 746 3066 1834 1298 . . . . . . . . . . . . . . . . . . 1204 . . . . . . . . . . . . . Cannons 116780 | . . . . . . . . . 858 943 6369 1195 545 . 709 4020 477 2704 5293 2547 1072 3053 4193 1083 1244 1563 . 1294 3475 434 1695 4042 1864 10296 6695 . 14579 905 4601 1875 27157 Explosions 16282 | . . . . 359 . . . . . . 790 . . . . 1133 . 295 . . . 552 . . . . . . 335 108 . . . . . . 4713 353 . 252 7392 Melee . | . . . . . . . . . . . . . . . . . . . . . . . . . . . . . . . . . . . . . . . . . . Ramming 389 | . . . . . . . . . . . . . . . . . . . . . . . . . . . . . 68 . . . . . . . 100 . . . 221 Kinetic 771 | 10 51 . . . . . . . . . . . . . . . . . . . . . . . . . . . . . . . . . . . . . . . 710 Thermal 118410 | . 1650 286 1386 233 . 746 3066 1834 2156 943 7159 1195 545 . 709 4875 477 2999 5293 2547 1072 3053 4193 1083 1244 1563 . 2498 2095 349 790 1820 499 6833 3499 . 17370 760 1490 1515 28585 Explosive 723 | . . . . 359 . . . . . . . . . . . 122 . . . . . . . . . . . . . . . . . . . . 242 . . . . Electromagnetic 24746 | . . . . . . . . . . . . . . . . 156 . . . . . 552 . . . . . . 1715 193 905 2222 1365 3463 3020 . 1680 498 3111 612 5254 Impact . | . . . . . . . . . . . . . . . . . . . . . . . . . . . . . . . . . . . . . . . . . . Slashing . | . . . . . . . . . . . . . . . . . . . . . . . . . . . . . . . . . . . . . . . . . . Piercing . | . . . . . . . . . . . . . . . . . . . . . . . . . . . . . . . . . . . . . . . . . . Entropic 176 | . . . . . . . . . . . . . . . . . . . . . . . . . . . . . . . . . . . 176 . . . . . . Highest Corruption 9 | . . . . . . . . . 2 . 2 2 . . . 2 . 1 4 . . 1 1 1 1 4 4 4 . . . . 9 . . . . . . . . Average Corruption 1 | . . . . . . . . . 1 . 1 1 . . . 1 . 1 1 . . 1 1 1 1 3 4 4 . . . . 9 . . . . . . . . Corruption Purged 12 | . . . . . . . . . 2 . 1 2 . . . 3 . . 4 . . . . . . . . . . . . . . . . . . . . . . Corruption Blocked 11 | . . . . . . . . . . . . . . . . . . . . . . . . . . . . . . . . . . 1 2 . 8 . . . . Effects 54 | . . . . . . . . . 2 . 10 2 . . . . . 4 4 . . 2 3 1 4 4 1 16 . . . . 1 . . . . . . . . Message Errors 14 | . . . . . . . . . . . 4 . . . . . . . 1 . . . . 1 1 . 1 5 . . . . 1 . . . . . . . . Matter Fused 10 | . . . . . . . . . 1 . 2 1 . . . . . 1 . . . . . . 1 1 . 3 . . . . . . . . . . . . . Heat Flow Errors 6 | . . . . . . . . . . . 1 1 . . . . . . . . . . 1 . 1 1 . 1 . . . . . . . . . . . . . Energy Discharges 6 | . . . . . . . . . . . . . . . . . . 1 . . . 1 . . 1 1 . 2 . . . . . . . . . . . . . Parts Rejected 2 | . . . . . . . . . 1 . . . . . . . . 1 . . . . . . . . . . . . . . . . . . . . . . . Parts Fused 1 | . . . . . . . . . . . . . . . . . . . 1 . . . . . . . . . . . . . . . . . . . . . . Data Loss (minor) 10 | . . . . . . . . . . . 2 . . . . . . 1 1 . . . 1 . . 1 . 4 . . . . . . . . . . . . . Misfires 1 | . . . . . . . . . . . . . . . . . . . . . . . 1 . . . . . . . . . . . . . . . . . . Alerts 3 | . . . . . . . . . . . . . . . . . . . 1 . . 1 . . . . . 1 . . . . . . . . . . . . . Weapon Failures 1 | . . . . . . . . . . . 1 . . . . . . . . . . . . . . . . . . . . . . . . . . . . . . Overload Shots 76 | . . . . . . . . . . . . . . . . . . . 3 6 . 2 . . . . . . 4 2 4 1 . 42 10 . . . . . 2 Effects 3 | . . . . . . . . . . . . . . . . . . . . . . . . . . . . . . . . . . 3 . . . . . . . Energy Bleed 1 | . . . . . . . . . . . . . . . . . . . . . . . . . . . . . . . . . . 1 . . . . . . . Heat Surge 2 | . . . . . . . . . . . . . . . . . . . . . . . . . . . . . . . . . . 2 . . . . . . . Overflow Damage 10022 | . . . . 7 . . . . 18 . 330 49 34 . 8 284 2 132 78 31 70 135 172 48 41 94 . 142 492 181 241 131 8 1220 566 . 2238 123 224 173 2750 Projectiles 7874 | . . . . . . . . . 18 . 200 49 34 . 8 98 2 132 78 31 70 42 172 48 41 94 . 142 358 92 241 131 8 1220 566 . 1572 15 224 99 2089 Explosions 1990 | . . . . 7 . . . . . . 130 . . . . 186 . . . . . 93 . . . . . . 81 89 . . . . . . 606 108 . 74 616 Melee 158 | . . . . . . . . . . . . . . . . . . . . . . . . . . . . . 53 . . . . . . . 60 . . . 45 Knockbacks 9 | . . . . . . . . . . . . . . . . . . . . . . . . . . . . . . . . . . . . . 1 . . . 8 Impact 2 | . . . . . . . . . . . . . . . . . . . . . . . . . . . . . . . . . . . . . 1 . . . 1 Kinetic 7 | . . . . . . . . . . . . . . . . . . . . . . . . . . . . . . . . . . . . . . . . . 7 Secondary . | . . . . . . . . . . . . . . . . . . . . . . . . . . . . . . . . . . . . . . . . . . Self-Inflicted Damage 1303 | . . . 17 . . . . . . . 263 . . . . 328 . 35 38 . . 83 . . . . . . 160 61 . . . . . . 209 . . . 109 Shots 18 | . . . 1 . . . . . . . 4 . . . . 5 . 1 1 . . 1 . . . . . . 2 1 . . . . . . 2 . . . . Rammed 6 | . . . . . . . . . . . . . . . . . . . . . . . . . . . . . 1 . . . . . . . 1 . . . 4 Targets Rammed 6 | . . . . . . . . . . . . . . . . . . . . . . . . . . . . . 1 . . . . . . . 1 . . . 4 Kicked . | . . . . . . . . . . . . . . . . . . . . . . . . . . . . . . . . . . . . . . . . . . Crushed . | . . . . . . . . . . . . . . . . . . . . . . . . . . . . . . . . . . . . . . . . . . Highest Temperature 376 | 9 247 . 75 161 . 229 135 158 252 152 289 78 . . . 10 64 45 17 . . 14 80 27 158 225 . 325 296 13 36 . . 180 . . 376 154 66 222 160 Average Temperature 68 | 6 81 . 19 75 . 98 38 42 57 37 90 11 . . . 7 59 18 16 . . 14 42 5 13 18 . 124 71 8 19 . . 84 . . 115 84 28 75 55 Received Heat Transfer 5079 | . 378 69 192 . . 135 288 324 270 . 603 87 . . 42 339 . 180 297 . . 237 159 27 9 . . 425 48 . 100 30 30 156 72 . 357 . 63 30 132 Effects 5 | . . . . . . 1 . . . . 2 . . . . . . . . . . . . . . . . . . . . . . . . . 2 . . . . Energy Bleed 4 | . . . . . . 1 . . . . 2 . . . . . . . . . . . . . . . . . . . . . . . . . 1 . . . . Matter Decay 1 | . . . . . . . . . . . . . . . . . . . . . . . . . . . . . . . . . . . . . 1 . . . . Siege Activations . | . . . . . . . . . . . . . . . . . . . . . . . . . . . . . . . . . . . . . . . . . . Martial Activations . | . . . . . . . . . . . . . . . . . . . . . . . . . . . . . . . . . . . . . . . . . . Shielding Activations . | . . . . . . . . . . . . . . . . . . . . . . . . . . . . . . . . . . . . . . . . . . Robots Disrupted 3 | . . . . . . . . . . . . . . . . . . . . . . . . . . . . . . . . . . 1 . . 1 . . 1 . Combat Hostiles 3 | . . . . . . . . . . . . . . . . . . . . . . . . . . . . . . . . . . 1 . . 1 . . 1 . Robots Corrupted 75 | . . . . . . . . . . . . . . . . . . . . . . . . . . . . . 5 . . 3 7 6 7 . 5 1 14 2 25 Combat Hostiles 70 | . . . . . . . . . . . . . . . . . . . . . . . . . . . . . 3 . . 3 7 6 7 . 4 1 14 2 23 Parts Fried 234 | . . . . . . . . . . . . . . . . . . . . . . . . . . . . . 15 . 8 8 13 30 31 . 25 5 33 5 61 Impact Corruptions 5 | . . . . . . . . . . . . . . . . . . . . . . . . . . . . . 1 . . . . . . . 2 . . . 2 Robots Melted 50 | . 2 . 2 . . . 2 2 . . 6 1 . . . 4 . . 7 1 2 4 3 . . . . 3 . . . . . 1 1 . 2 1 . . 6 Combat Hostiles 43 | . 2 . 1 . . . 2 2 . . 4 1 . . . 3 . . 7 1 . 4 3 . . . . 3 . . . . . 1 1 . 2 1 . . 5 Parts Melted 266 | . 9 3 15 . . 7 16 8 14 1 16 1 . . 1 15 . 8 22 2 6 7 11 2 5 7 . 9 3 . 2 2 . 13 3 . 14 1 6 3 34 Heat Transferred 111706 | . 4995 851 4255 666 . 2146 6327 3922 3819 1221 6642 1147 518 . 666 4753 572 3201 5842 2786 1192 3464 4622 1094 1431 1588 . 3176 1890 260 890 1850 550 5180 2040 . 10525 314 814 1097 15400 Parts Sabotaged . | . . . . . . . . . . . . . . . . . . . . . . . . . . . . . . . . . . . . . . . . . . Parts Stolen 8 | . . . . . . . . . . . . 1 3 . . . . . . . . . . . . 4 . . . . . . . . . . . . . . . Parts Stripped . | . . . . . . . . . . . . . . . . . . . . . . . . . . . . . . . . . . . . . . . . . . Power Chain Reactions 4 | . . . . . . . . . . . . . . . . . . . . . . . . . . . . . 1 1 . . . . . . 1 . . . 1 Alert | -11 -10 -10 -9 -9 -9 -8 -8 -8 -7 -7 -7 -7 -7 -7 -6 -6 -6 -6 -6 -6 -6 -6 -6 -5 -5 -5 -5 -4 -4 -4 -4 -4 -3 -3 -3 -3 -2 -2 -2 -1 -1 ------- Run | Yrd Mat Min Mat Min Exi Min Mat Gar Fac Was Fac Low Low Zio Pro Fac Was Fac Ext Cet Arc Hub Gar Fac Upp Upp Zhi Pro Fac Upp Upp War Pro Res Arm Lab Res Qua Sec Acc Com Maximum Alert Level 5 | . 2 . 1 . . . 2 3 2 1 5 . . . . 4 2 2 3 2 1 2 4 3 . . . . 3 . . . . 4 5 . 5 5 5 4 5 Low Security (%) 17 | 100 64 100 70 100 . 100 56 . . 91 6 . . . . . . . 15 . 38 47 . . . . . . . . . . . 6 . . 20 . . . . Level 1 16 | . 29 . 29 . . . 35 10 54 8 7 . . . . . 34 58 38 . 61 28 3 . . . . . 13 . . . . 7 . . 5 . . . . Level 2 18 | . 5 . . . . . 7 45 45 . 6 . . . . 8 65 41 43 100 . 23 33 67 . . . . 46 . . . . 6 . . 10 . . . . Level 3 17 | . . . . . . . . 44 . . 21 . . . . 71 . . 3 . . . 40 32 . . . . 40 . . . . 46 31 . 6 . . 17 14 Level 4 16 | . . . . . . . . . . . 31 . . . . 19 . . . . . . 22 . . . . . . . . . . 32 40 . 13 . 99 82 16 Level 5 8 | . . . . . . . . . . . 26 . . . . . . . . . . . . . . . . . . . . . . . 28 . 35 . . . 34 High Security 4 | . . . . . . . . . . . . . . . . . . . . . . . . . . . . . . . . . . . . . 7 99 . . 34 Max Security . | . . . . . . . . . . . . . . . . . . . . . . . . . . . . . . . . . . . . . . . . . . Peak Influence 3264 | 5 432 193 268 21 . 145 451 1085 691 201 2232 . . . . 1286 445 506 742 523 338 560 1258 737 . . . . 1049 . . . . 1576 2790 . 3019 1895 1619 1361 3264 Initial 1698 | . . 163 55 . . . 48 235 569 200 73 . . . . 914 445 263 156 412 201 39 382 660 . . . . 269 . . . . 131 819 . . 1698 1100 971 880 Average 800 | 1 148 155 131 . . 68 212 679 430 151 1220 . . . . 969 411 345 397 468 225 252 881 680 . . . . 678 . . . . 931 1495 . 1296 1843 1352 1195 1883 Influence Increases 36521 | 5 741 100 837 21 . 255 916 870 945 55 3645 260 70 . 275 2424 1 660 1480 191 167 761 876 338 210 100 . 440 1328 30 195 430 365 2067 2675 . 3499 197 821 643 7628 Destroy 0b10 Robot/C 18060 | . 480 80 400 . . 200 540 460 420 . 1800 240 60 . 140 680 . 320 780 160 80 280 660 140 180 80 . 360 480 20 160 380 260 1040 1220 . 1800 120 520 300 3220 Destroy 0b10 Robot/NC 980 | 5 35 . 45 . . . 45 . 25 . 110 . . . 10 30 . 35 60 10 35 35 . . . . . 35 45 10 . . 5 70 25 . 145 15 35 20 95 Destroy Leader 3168 | . 120 20 144 . . 40 152 20 152 . 358 20 10 . 20 170 . 84 86 . . 88 30 60 30 20 . 30 106 . 20 . 40 194 258 . 366 2 140 56 332 Allied During Kill 2466 | . . . 60 . . . . . . . 593 . . . 30 . . . 396 . . . . . . . . . . . . 20 . 124 582 . . . . . 661 Successful Hack 386 | . 14 . 20 . . 15 8 40 102 . 73 . . . . 16 . 28 . . . . . 6 . . . . 12 . . . . 37 15 . . . . . . Select Force Hacks 660 | . 60 . 120 . . . 60 . 150 . 90 . . . . 30 . 30 . . . . . 30 . . . . . . . . . . . . 30 . . 60 . Disable Machine 1620 | . . . 15 . . . . 30 15 . 150 . . . . 435 . 75 30 15 45 180 30 15 . . . . 120 . . . . 60 105 . 90 . 60 45 105 Anti-Garrison Action 300 | . . . . . . . . 200 . . . . . . . . . . . . . . 50 . . . . . . . . . . . . . . . . . 50 Destroy Structure 2716 | . 2 . 18 21 . . 6 30 6 55 186 . . . . 118 1 28 38 6 7 163 31 72 . . . . 250 . . . . 152 80 . 678 45 21 72 630 Advance Influence 1050 | . . . . . . . . . . . . . . . . 900 . . . . . . . . . . . . 150 . . . . . . . . . . . . Partial Spotted 630 | . . . . . . . 15 . 45 . 15 . . . . 15 . 30 . . . 15 . 15 . . . . 15 . . . . 90 60 . 75 15 15 45 165 Lose Combat Pursuer 4485 | . 30 . 15 . . . 90 90 30 . 270 . . . 75 30 . 30 90 . . . 75 . . . . 15 150 . 15 30 60 300 330 . 315 . 30 45 2370 Influence Decreases 28962 | 5 321 377 980 21 . 130 679 147 1456 524 1521 1063 422 1074 252 1173 899 715 1063 426 556 329 164 884 444 201 377 251 490 471 252 823 306 702 1445 2790 480 1321 1132 886 1410 Entered New Map 15073 | . . 257 88 . . . 77 127 516 374 32 825 272 1074 . 9 829 113 165 326 302 75 164 598 264 91 377 . 70 381 112 529 136 64 741 2790 . 1321 830 648 496 Time Decay 8834 | 5 321 120 226 . . 130 302 . 470 110 559 238 150 . 192 434 70 452 478 100 254 254 . 286 180 110 . 251 410 90 140 66 170 538 464 . 470 . 302 238 254 Search Patrol Dispatched 100 | . . . . . . . . . . . . . . . . 100 . . . . . . . . . . . . . . . . . . . . . . . . . Lost Part 100 | . . . . . . . . 20 10 . 30 . . . . 10 . . . . . . . . . . . . 10 . . . . . 10 . 10 . . . . Lost Ally 2089 | . . . . 21 . . . . 10 40 300 . . . 60 20 . . 420 . . . . . . . . . . . . 228 . 100 230 . . . . . 660 Purge Threat 2766 | . . . 666 . . . 300 . 450 . 600 . . . . 600 . 150 . . . . . . . . . . . . . . . . . . . . . . . Squads Dispatched 192 | . 6 . 5 . . 1 4 . 19 . 25 . . . . 14 . 7 2 . . 5 . 6 . . . . 8 . . . . 13 15 . 21 4 4 6 27 Investigation 78 | . 3 . 4 . . 1 3 . 14 . 14 . . . . 6 . 4 . . . 1 . 3 . . . . 4 . . . . 4 8 . 5 . 1 3 . Extermination 35 | . . . . . . . . . 3 . 3 . . . . 2 . 3 . . . 2 . 1 . . . . 3 . . . . 5 2 . 4 . 2 2 3 Reinforcement 28 | . 3 . 1 . . . 1 . 1 . 3 . . . . 4 . . 1 . . 2 . . . . . . 1 . . . . . 3 . 5 . 1 . 2 Assault 49 | . . . . . . . . . . . 4 . . . . 2 . . 1 . . . . 2 . . . . . . . . . 4 2 . 7 4 . 1 22 Garrison 2 | . . . . . . . . . 1 . 1 . . . . . . . . . . . . . . . . . . . . . . . . . . . . . . Intercept . | . . . . . . . . . . . . . . . . . . . . . . . . . . . . . . . . . . . . . . . . . . Searches Triggered 1 | . . . . . . . . . . . . . . . . 1 . . . . . . . . . . . . . . . . . . . . . . . . . Unchained Authorized 7 | . . . . . . . . . . . . . . . . . . 1 1 . . 1 . . . . . . . . . . . 1 1 . 1 . . 1 . Construction Impeded 2 | . . . . . . . . . . . 1 . . . . . . . . . . 1 . . . . . . . . . . . . . . . . . . . Haulers Reinforced 1 | . . . . . . . . . . . . . . . . . . . . . . . . . . . . . . . . . . . . . 1 . . . . Active Scanning Responses . | . . . . . . . . . . . . . . . . . . . . . . . . . . . . . . . . . . . . . . . . . . Cargo Convoy Interrupts 1 | . . . . . . . . . . . 1 . . . . . . . . . . . . . . . . . . . . . . . . . . . . . . Stealth | -11 -10 -10 -9 -9 -9 -8 -8 -8 -7 -7 -7 -7 -7 -7 -6 -6 -6 -6 -6 -6 -6 -6 -6 -5 -5 -5 -5 -4 -4 -4 -4 -4 -3 -3 -3 -3 -2 -2 -2 -1 -1 --------- Run | Yrd Mat Min Mat Min Exi Min Mat Gar Fac Was Fac Low Low Zio Pro Fac Was Fac Ext Cet Arc Hub Gar Fac Upp Upp Zhi Pro Fac Upp Upp War Pro Res Arm Lab Res Qua Sec Acc Com Distress Signals 44 | . 4 . 5 . . . 3 . 1 . 8 . . . . 3 . . . 1 . 1 . . . . . . 3 . . 3 . 4 . . 4 . . . 4 Communications Jammed 378 | . . . . . . . . . . . . . . . 1 . . . . . . . . . . . . . . . . 181 . 11 23 . 60 . 49 . 53 Distress Signals 372 | . . . . . . . . . . . . . . . . . . . . . . . . . . . . . . . . 181 . 11 23 . 59 . 45 . 53 Times Spotted 1475 | . 37 4 26 21 . 9 44 23 34 5 89 15 8 . 14 49 . 22 56 9 8 30 36 5 9 8 . 22 38 . 16 48 15 89 83 . 140 8 40 24 391 Peak Tracking Total 67 | . 6 2 5 18 . 3 7 5 4 2 12 7 3 . 4 4 . 5 7 5 1 7 4 2 3 4 . 5 5 . 5 11 3 19 8 . 11 3 4 5 67 Tactical Retreats 104 | . 2 . 1 1 . . 3 3 1 . 7 . . . 3 2 . 1 4 . . . 2 . . . . 1 6 . 1 2 3 9 9 . 12 . 1 1 29 Traps | -11 -10 -10 -9 -9 -9 -8 -8 -8 -7 -7 -7 -7 -7 -7 -6 -6 -6 -6 -6 -6 -6 -6 -6 -5 -5 -5 -5 -4 -4 -4 -4 -4 -3 -3 -3 -3 -2 -2 -2 -1 -1 ------- Run | Yrd Mat Min Mat Min Exi Min Mat Gar Fac Was Fac Low Low Zio Pro Fac Was Fac Ext Cet Arc Hub Gar Fac Upp Upp Zhi Pro Fac Upp Upp War Pro Res Arm Lab Res Qua Sec Acc Com Traps Triggered 31 | . 1 . 1 . . . . 1 3 . 3 . . . . 4 . . 3 . . 2 7 . . . . . . . . . . . 1 . 3 . . . 2 Indirectly . | . . . . . . . . . . . . . . . . . . . . . . . . . . . . . . . . . . . . . . . . . . Trap Hack Attempts . | . . . . . . . . . . . . . . . . . . . . . . . . . . . . . . . . . . . . . . . . . . Triggered . | . . . . . . . . . . . . . . . . . . . . . . . . . . . . . . . . . . . . . . . . . . Disarmed . | . . . . . . . . . . . . . . . . . . . . . . . . . . . . . . . . . . . . . . . . . . Reprogrammed . | . . . . . . . . . . . . . . . . . . . . . . . . . . . . . . . . . . . . . . . . . . Reused . | . . . . . . . . . . . . . . . . . . . . . . . . . . . . . . . . . . . . . . . . . . Traps Extracted . | . . . . . . . . . . . . . . . . . . . . . . . . . . . . . . . . . . . . . . . . . . Installed . | . . . . . . . . . . . . . . . . . . . . . . . . . . . . . . . . . . . . . . . . . . Triggered . | . . . . . . . . . . . . . . . . . . . . . . . . . . . . . . . . . . . . . . . . . . Machines | -11 -10 -10 -9 -9 -9 -8 -8 -8 -7 -7 -7 -7 -7 -7 -6 -6 -6 -6 -6 -6 -6 -6 -6 -5 -5 -5 -5 -4 -4 -4 -4 -4 -3 -3 -3 -3 -2 -2 -2 -1 -1 ---------- Run | Yrd Mat Min Mat Min Exi Min Mat Gar Fac Was Fac Low Low Zio Pro Fac Was Fac Ext Cet Arc Hub Gar Fac Upp Upp Zhi Pro Fac Upp Upp War Pro Res Arm Lab Res Qua Sec Acc Com Machines Disabled 123 | . . . 1 . . . . 6 1 . 10 2 . . . 29 . 5 3 1 3 12 3 1 . . . . 8 . . 2 . 4 7 1 6 1 5 3 9 Max in Single Turn 20 | . . . 1 . . . . 1 1 . 5 1 . . . 20 . 2 1 1 1 8 1 1 . . . . 4 . . 1 . 1 1 1 1 1 1 1 2 Garrison Access 21 | . . . . . . . . . 2 . 2 . . . . 2 . 3 . . . . . 1 . . . . 3 . . . . 4 . . 1 1 1 1 . Garrison Relay 5 | . . . . . . . . 4 . . . . . . . . . . . . . . 1 . . . . . . . . . . . . . . . . . . Phase Generator 1 | . . . . . . . . . . . . . . . . . . . . . . . . . . . . . . . . . . . . . . . . . 1 Network Hub 1 | . . . . . . . . . . . . . . . . . . . . . . 1 . . . . . . . . . . . . . . . . . . . Energy Cycler 1 | . . . . . . . . . . . . . . . . . . . 1 . . . . . . . . . . . . . . . . . . . . . . Machines Repaired . | . . . . . . . . . . . . . . . . . . . . . . . . . . . . . . . . . . . . . . . . . . Machines Dismantled . | . . . . . . . . . . . . . . . . . . . . . . . . . . . . . . . . . . . . . . . . . . Machines Sabotaged . | . . . . . . . . . . . . . . . . . . . . . . . . . . . . . . . . . . . . . . . . . . Overloaded Fab Kills . | . . . . . . . . . . . . . . . . . . . . . . . . . . . . . . . . . . . . . . . . . . Hacking | -11 -10 -10 -9 -9 -9 -8 -8 -8 -7 -7 -7 -7 -7 -7 -6 -6 -6 -6 -6 -6 -6 -6 -6 -5 -5 -5 -5 -4 -4 -4 -4 -4 -3 -3 -3 -3 -2 -2 -2 -1 -1 --------- Run | Yrd Mat Min Mat Min Exi Min Mat Gar Fac Was Fac Low Low Zio Pro Fac Was Fac Ext Cet Arc Hub Gar Fac Upp Upp Zhi Pro Fac Upp Upp War Pro Res Arm Lab Res Qua Sec Acc Com Machines Accessed 165 | . 7 . 12 . 1 1 10 4 24 . 23 1 . . . 9 . 9 . . . 1 . 4 . . 6 . 7 3 1 5 . 11 8 . 6 1 4 7 . Terminals 50 | . 5 . 8 . . 1 7 4 9 . 10 1 . . . . . . . . . . . . . . . . . . . . . . . . . . 2 3 . Fabricators 37 | . . . . . . . . . 5 . 3 . . . . 4 . 4 . . . . . 2 . . . . 4 . . . . 4 7 . 3 . . 1 . Repair Stations 10 | . . . . . . . . . 3 . 3 . . . . 2 . . . . . . . . . . . . . . . . . . 1 . . . 1 . . Recycling Units 10 | . 2 . 2 . . . 1 . 2 . 2 . . . . . . . . . . . . . . . . . . . . . . . . . 1 . . . . Scanalyzers 19 | . . . 2 . . . 1 . 3 . 3 . . . . 1 . 2 . . . . . 1 . . . . . . . . . 3 . . 1 . . 2 . Garrison Access 23 | . . . . . . . 1 . 2 . 2 . . . . 2 . 3 . . . 1 . 1 . . . . 3 . . . . 4 . . 1 1 1 1 . Total Hacks 568 | . 23 . 36 . 1 8 32 12 87 . 88 6 . . . 36 . 31 . . . 1 . 10 . . 19 . 28 6 1 16 . 41 37 . 24 3 11 11 . Successful 365 | . 11 . 25 . 1 4 26 5 57 . 39 6 . . . 27 . 23 . . . 1 . 9 . . 19 . 16 6 1 16 . 24 23 . 12 1 4 9 . Failed 201 | . 11 . 10 . . 4 6 7 30 . 49 . . . . 9 . 8 . . . . . 1 . . . . 12 . . . . 17 14 . 12 2 7 2 . Catastrophic 21 | . 2 . 1 . . 1 . . 3 . 8 . . . . . . 1 . . . . . . . . . . . . . . . 2 . . 1 1 1 . . Database Lockouts 2 | . 1 . 1 . . . . . . . . . . . . . . . . . . . . . . . . . . . . . . . . . . . . . . Manual 551 | . 19 . 27 . 1 8 21 5 38 . 32 . . 1 . 39 . 46 5 . . 23 1 10 . . . . 55 . . . . 47 36 . 58 6 35 11 27 Terminals 194 | . 20 . 29 . . 8 28 12 44 . 41 6 . . . . . . . . . . . . . . . . . . . . . . . . . . 2 4 . Fabricators 172 | . . . . . . . . . 18 . 14 . . . . 21 . 18 . . . . . 5 . . . . 23 . . . . 19 36 . 15 . . 3 . Repair Stations 28 | . . . . . . . . . 8 . 13 . . . . 3 . . . . . . . . . . . . . . . . . . 1 . . . 3 . . Recycling Units 12 | . 3 . 2 . . . 1 . 2 . 3 . . . . . . . . . . . . . . . . . . . . . . . . . 1 . . . . Scanalyzers 65 | . . . 5 . . . 2 . 13 . 11 . . . . 8 . 6 . . . . . 3 . . . . . . . . . 12 . . 2 . . 3 . Garrison Access 54 | . . . . . . . 1 . 2 . 6 . . . . 4 . 7 . . . 1 . 2 . . . . 5 . . . . 10 . . 6 3 6 1 . Terminal Hacks 110 | . 5 . 10 . 1 4 12 5 13 . 7 6 . . . . . . . . . . . . . . 19 . . 6 1 16 . . . . . . 2 3 . Record 27 | . . . . . . . . . . . . 6 . . . . . . . . . . . . . . 7 . . 4 . 10 . . . . . . . . . Part Schematic 4 | . . . . . . . . . . . . . . . . . . . . . . . . . . . 4 . . . . . . . . . . . . . . Robot Analysis 14 | . 1 . 1 . . 4 2 . 2 . . . . . . . . . . . . . . . . . 4 . . . . . . . . . . . . . . Prototype ID Bank 13 | . 2 . . . . . 1 . 1 . . . . . . . . . . . . . . . . . 4 . . . . 5 . . . . . . . . . Open Door 9 | . . . . . . . . . . . . . . . . . . . . . . . . . . . . . . 2 1 1 . . . . . . 2 3 . Branch Access Points 1 | . . . . . . . . . 1 . . . . . . . . . . . . . . . . . . . . . . . . . . . . . . . . Emergency Access Points 1 | . . . . . . . . 1 . . . . . . . . . . . . . . . . . . . . . . . . . . . . . . . . . Machine Index 1 | . . . . . . . . . . . 1 . . . . . . . . . . . . . . . . . . . . . . . . . . . . . . Terminal Index 3 | . 1 . 1 . . . 1 . . . . . . . . . . . . . . . . . . . . . . . . . . . . . . . . . . Recycling Unit Index 2 | . 1 . . . . . 1 . . . . . . . . . . . . . . . . . . . . . . . . . . . . . . . . . . Scanalyzer Index 1 | . . . . . . . 1 . . . . . . . . . . . . . . . . . . . . . . . . . . . . . . . . . . Alert Level 12 | . . . 2 . . . 3 1 4 . 2 . . . . . . . . . . . . . . . . . . . . . . . . . . . . . . Unreport Threat 14 | . . . 5 . . . 2 . 3 . 4 . . . . . . . . . . . . . . . . . . . . . . . . . . . . . . Locate Traps 1 | . . . . . . . . . 1 . . . . . . . . . . . . . . . . . . . . . . . . . . . . . . . . Hauler Manifests 3 | . . . 1 . . . 1 . 1 . . . . . . . . . . . . . . . . . . . . . . . . . . . . . . . . Garrison Registry 1 | . . . . . . . . 1 . . . . . . . . . . . . . . . . . . . . . . . . . . . . . . . . . Patrol Navigation 1 | . . . . . . . . 1 . . . . . . . . . . . . . . . . . . . . . . . . . . . . . . . . . Security Stations 1 | . . . . . . . . 1 . . . . . . . . . . . . . . . . . . . . . . . . . . . . . . . . . Proto ID Catalog 1 | . . . . . 1 . . . . . . . . . . . . . . . . . . . . . . . . . . . . . . . . . . . . Fabricator Hacks 84 | . . . . . . . . . 9 . 7 . . . . 11 . 9 . . . . . 4 . . . . 8 . . . . 10 18 . 5 . . 3 . Network Status 13 | . . . . . . . . . 2 . 2 . . . . 2 . 1 . . . . . 1 . . . . 1 . . . . 1 2 . . . . 1 . Load Schematic 47 | . . . . . . . . . 4 . 4 . . . . 6 . 5 . . . . . 2 . . . . 5 . . . . 6 10 . 4 . . 1 . Build 24 | . . . . . . . . . 3 . 1 . . . . 3 . 3 . . . . . 1 . . . . 2 . . . . 3 6 . 1 . . 1 . Repair Station Hacks 6 | . . . . . . . . . 2 . 4 . . . . . . . . . . . . . . . . . . . . . . . . . . . . . . Scan Component 4 | . . . . . . . . . 1 . 3 . . . . . . . . . . . . . . . . . . . . . . . . . . . . . . Repair 2 | . . . . . . . . . 1 . 1 . . . . . . . . . . . . . . . . . . . . . . . . . . . . . . Recycling Unit Hacks 1 | . . . . . . . . . . . . . . . . . . . . . . . . . . . . . . . . . . . . . 1 . . . . Retrieve Matter 1 | . . . . . . . . . . . . . . . . . . . . . . . . . . . . . . . . . . . . . 1 . . . . Scanalyzer 34 | . . . 1 . . . 1 . 9 . 5 . . . . 6 . 4 . . . . . 2 . . . . . . . . . 5 . . 1 . . . . Insert Component 14 | . . . 1 . . . . . 2 . 3 . . . . 1 . 2 . . . . . 1 . . . . . . . . . 3 . . 1 . . . . Analyze 13 | . . . . . . . . . 5 . 2 . . . . 1 . 2 . . . . . 1 . . . . . . . . . 2 . . . . . . . Retrieve Study 7 | . . . . . . . 1 . 2 . . . . . . 4 . . . . . . . . . . . . . . . . . . . . . . . . . Garrison Access Hacks 23 | . . . . . . . 1 . 2 . 2 . . . . 2 . 3 . . . 1 . 1 . . . . 3 . . . . 4 . . 1 1 1 1 . Unlock Access 2 | . . . . . . . 1 . . . . . . . . . . . . . . 1 . . . . . . . . . . . . . . . . . . . Seal Access 21 | . . . . . . . . . 2 . 2 . . . . 2 . 3 . . . . . 1 . . . . 3 . . . . 4 . . 1 1 1 1 . Unauthorized Hacks 107 | . 6 . 14 . . . 12 . 22 . 14 . . . . 8 . 7 . . . . . 2 . . . . 5 . . . . 5 5 . 4 . 1 2 . Terminals 43 | . 4 . 10 . . . 10 . 11 . 8 . . . . . . . . . . . . . . . . . . . . . . . . . . . . . . Assimilate 2 | . . . 1 . . . . . 1 . . . . . . . . . . . . . . . . . . . . . . . . . . . . . . . . Botnet 15 | . 1 . 3 . . . 4 . 4 . 3 . . . . . . . . . . . . . . . . . . . . . . . . . . . . . . Skim 26 | . 3 . 6 . . . 6 . 6 . 5 . . . . . . . . . . . . . . . . . . . . . . . . . . . . . . Fabricators 35 | . . . . . . . . . 3 . 3 . . . . 5 . 6 . . . . . 1 . . . . 5 . . . . 5 4 . 3 . . . . Prioritize 12 | . . . . . . . . . 1 . 1 . . . . 2 . 3 . . . . . . . . . . 2 . . . . 2 1 . . . . . . Haulers 1 | . . . . . . . . . . . . . . . . . . 1 . . . . . . . . . . . . . . . . . . . . . . . Recompile 22 | . . . . . . . . . 2 . 2 . . . . 3 . 2 . . . . . 1 . . . . 3 . . . . 3 3 . 3 . . . . Repair Stations 7 | . . . . . . . . . 3 . . . . . . 2 . . . . . . . . . . . . . . . . . . 1 . . . 1 . . Patch 7 | . . . . . . . . . 3 . . . . . . 2 . . . . . . . . . . . . . . . . . . 1 . . . 1 . . Recycling Units 9 | . 2 . 2 . . . 1 . 2 . 2 . . . . . . . . . . . . . . . . . . . . . . . . . . . . . . Tunnel 9 | . 2 . 2 . . . 1 . 2 . 2 . . . . . . . . . . . . . . . . . . . . . . . . . . . . . . Scanalyzers 13 | . . . 2 . . . 1 . 3 . 1 . . . . 1 . 1 . . . . . 1 . . . . . . . . . . . . 1 . . 2 . Extract 13 | . . . 2 . . . 1 . 3 . 1 . . . . 1 . 1 . . . . . 1 . . . . . . . . . . . . 1 . . 2 . Garrison Access . | . . . . . . . . . . . . . . . . . . . . . . . . . . . . . . . . . . . . . . . . . . Data Cores Recovered 8 | . . . 1 . . . . . 1 . 1 . . . . 2 . 2 . . . . . . . . . . . . . . . . . . . . 1 . . Used 1 | . . . . . . . . . 1 . . . . . . . . . . . . . . . . . . . . . . . . . . . . . . . . Hacking Detections 82 | . 5 . 7 . . 1 5 4 12 . 17 . . . . 7 . 5 . . . . . 2 . . . . 2 . . . . 5 5 . 3 . 1 1 . Full Trace Events 22 | . 1 . 1 . . 1 1 . 4 . 9 . . . . . . . . . . . . 1 . . . . . . . . . 1 3 . . . . . . Feedback Events 2 | . . . . . . . . . . . 1 . . . . . . . . . . . . . . . . . . . . . . . 1 . . . . . . Corruption 2 | . . . . . . . . . . . 1 . . . . . . . . . . . . . . . . . . . . . . . 1 . . . . . . Feedback Blocked 3 | . . . . . . . . . . . 3 . . . . . . . . . . . . . . . . . . . . . . . . . . . . . . Robot Schematics Acquired 44 | . . . . . . . . . . . . . . 4 . . . 13 4 . . . . . . . . . . . . . . 3 . . 10 . 6 4 . Robots Built . | . . . . . . . . . . . . . . . . . . . . . . . . . . . . . . . . . . . . . . . . . . Authchips . | . . . . . . . . . . . . . . . . . . . . . . . . . . . . . . . . . . . . . . . . . . Time . | . . . . . . . . . . . . . . . . . . . . . . . . . . . . . . . . . . . . . . . . . . Total Robot Build Rating . | . . . . . . . . . . . . . . . . . . . . . . . . . . . . . . . . . . . . . . . . . . Part Schematics Acquired 300 | . . . 3 . . . 4 . 16 . 7 . . 14 . 45 . 29 . . . . . 2 . . 4 . 9 . . . . 29 10 . 59 . 23 17 29 Parts Built 29 | . . . . . . . . . 6 . 1 . . . . 4 . 3 . . . . . 1 . . . . 2 . . . . 3 6 . 2 . . 1 . Authchips 19 | . . . . . . . . . 1 . 1 . . . . 3 . 3 . . . . . . . . . . 2 . . . . 3 4 . 1 . . 1 . Time 2187 | . . . . . . . . . 201 . 93 . . . . 205 . 304 . . . . . 76 . . . . 177 . . . . 476 556 . 31 . . 68 . Total Part Build Rating 186 | . . . . . . . . . 32 . 7 . . . . 22 . 15 . . . . . 5 . . . . 13 . . . . 24 50 . 10 . . 8 . Part Studies Acquired 5 | . . . . . . . . . 1 . . . . . . 4 . . . . . . . . . . . . . . . . . . . . . . . . . Parts Repaired 2 | . . . . . . . . . 1 . 1 . . . . . . . . . . . . . . . . . . . . . . . . . . . . . . Time 100 | . . . . . . . . . 22 . 78 . . . . . . . . . . . . . . . . . . . . . . . . . . . . . . Parts Recycled . | . . . . . . . . . . . . . . . . . . . . . . . . . . . . . . . . . . . . . . . . . . Recycled Matter . | . . . . . . . . . . . . . . . . . . . . . . . . . . . . . . . . . . . . . . . . . . Retrieved Matter . | . . . . . . . . . . . . . . . . . . . . . . . . . . . . . . . . . . . . . . . . . . Retrieved Components . | . . . . . . . . . . . . . . . . . . . . . . . . . . . . . . . . . . . . . . . . . . Parts Scanalyzed 10 | . . . . . . . . . 2 . 2 . . . . 1 . 2 . . . . . 1 . . . . . . . . . 2 . . . . . . . Part Schematics Acquired 10 | . . . . . . . . . 2 . 2 . . . . 1 . 2 . . . . . 1 . . . . . . . . . 2 . . . . . . . Parts Damaged 1 | . . . . . . . . . . . 1 . . . . . . . . . . . . . . . . . . . . . . . . . . . . . . Bothacking | -11 -10 -10 -9 -9 -9 -8 -8 -8 -7 -7 -7 -7 -7 -7 -6 -6 -6 -6 -6 -6 -6 -6 -6 -5 -5 -5 -5 -4 -4 -4 -4 -4 -3 -3 -3 -3 -2 -2 -2 -1 -1 ------------ Run | Yrd Mat Min Mat Min Exi Min Mat Gar Fac Was Fac Low Low Zio Pro Fac Was Fac Ext Cet Arc Hub Gar Fac Upp Upp Zhi Pro Fac Upp Upp War Pro Res Arm Lab Res Qua Sec Acc Com Used RIF Installer . | . . . . . . . . . . . . . . . . . . . . . . . . . . . . . . . . . . . . . . . . . . Robots Hacked 1 | . . . . . . . . . . . . . . . . . . . . . 1 . . . . . . . . . . . . . . . . . . . . Non-combat 1 | . . . . . . . . . . . . . . . . . . . . . 1 . . . . . . . . . . . . . . . . . . . . Combat . | . . . . . . . . . . . . . . . . . . . . . . . . . . . . . . . . . . . . . . . . . . Robot Hacks Applied 1 | . . . . . . . . . . . . . . . . . . . . . 1 . . . . . . . . . . . . . . . . . . . . check_alert 1 | . . . . . . . . . . . . . . . . . . . . . 1 . . . . . . . . . . . . . . . . . . . . Relay Couplers Released 12 | . . . . . . . . 6 2 . . . . . . 2 . . . . . . 1 . . . . . . . . . . . . . 1 . . . . Machine Destruction 7 | . . . . . . . . 6 . . . . . . . . . . . . . . 1 . . . . . . . . . . . . . . . . . . Programmers 5 | . . . . . . . . . 2 . . . . . . 2 . . . . . . . . . . . . . . . . . . . . 1 . . . . Fabnet Peak Effective % . | . . . . . . . . . . . . . . . . . . . . . . . . . . . . . . . . . . . . . . . . . . Robots Rewired 33 | . . . . . . . . . . . . . . . . . . . 21 . . . . . . . . . . . . . . . 12 . . . . . . Allies Hacked 4 | . . . . . . . . . . . . . . . . . . . . . . . . . . . . . . . . . . . 4 . . . . . . Hacks Repelled . | . . . . . . . . . . . . . . . . . . . . . . . . . . . . . . . . . . . . . . . . . . Allies | -11 -10 -10 -9 -9 -9 -8 -8 -8 -7 -7 -7 -7 -7 -7 -6 -6 -6 -6 -6 -6 -6 -6 -6 -5 -5 -5 -5 -4 -4 -4 -4 -4 -3 -3 -3 -3 -2 -2 -2 -1 -1 -------- Run | Yrd Mat Min Mat Min Exi Min Mat Gar Fac Was Fac Low Low Zio Pro Fac Was Fac Ext Cet Arc Hub Gar Fac Upp Upp Zhi Pro Fac Upp Upp War Pro Res Arm Lab Res Qua Sec Acc Com Total Allies 110 | . . 3 1 2 . . . . 1 20 . . . 4 . . . . 23 . . . . . . . . . . . . . . 5 16 . . . . . 35 Largest Group 20 | . . 3 4 4 2 . . . 1 20 17 . . 4 4 1 . . 14 . . . . . . . . . . . . . . 3 12 . . . . . 13 Highest-Rated Group 917 | . . 40 48 47 47 . . . 26 496 454 . . 151 151 36 . . 393 . . . . . . . . . . . . . . 243 917 . . . . . 187 Highest-Rated Ally 103 | . . 16 16 31 31 . . . 26 35 35 . . 41 41 36 . . 39 . . . . . . . . . . . . . . 96 103 . . . . . 15 Zionite Dispatches 4 | . . . . . . . . . . . . . . . . . . . . . . . . . . . . . . . . . . 1 3 . . . . . . Heavy 2 | . . . . . . . . . . . . . . . . . . . . . . . . . . . . . . . . . . . 2 . . . . . . Recon 1 | . . . . . . . . . . . . . . . . . . . . . . . . . . . . . . . . . . . 1 . . . . . . Hacker 1 | . . . . . . . . . . . . . . . . . . . . . . . . . . . . . . . . . . 1 . . . . . . . Initial Warlord ECA Mod 7 | . . . . . . . . . 7 7 7 7 7 7 . . . . . . . . . . . . . . . . . . . . . . . . . . . Total Orders 31 | . . . . 1 . . . . 2 . . . . . . 5 . 3 2 . . . . 1 . . . . . . . 14 . . 3 . . . . . . STAY 2 | . . . . 1 . . . . 1 . . . . . . . . . . . . . . . . . . . . . . . . . . . . . . . . ROAM 2 | . . . . . . . . . . . . . . . . . . . . . . . . . . . . . . . . 1 . . 1 . . . . . . FOLLOW 5 | . . . . . . . . . 1 . . . . . . . . 1 . . . . . . . . . . . . . 3 . . . . . . . . . EXPLORE 11 | . . . . . . . . . . . . . . . . . . . . . . . . . . . . . . . . 9 . . 2 . . . . . . RETURN 11 | . . . . . . . . . . . . . . . . 5 . 2 2 . . . . 1 . . . . . . . 1 . . . . . . . . . Ally Attacks 791 | . . . 22 3 . . . . . 84 223 . . . 14 . . . 138 . . . . . . . . . . . . . . 43 157 . . . . . 107 Total Damage 18135 | . . . 240 42 . . . . . 2409 4822 . . . 186 . . . 2486 . . . . . . . . . . . . . . 1860 3920 . . . . . 2170 Kills 132 | . . . 3 2 . . . . . 5 44 . . . 2 . . . 23 . . . . . . . . . . . . . . 10 30 . . . . . 13 Allies Corrupted 15 | . . . . . . . . . . . 2 . . . . . . . . . . . . . . . . . . . . 9 . . 3 . . . . . 1 Allies Melted 2 | . . . . . . . . . . . 1 . . . . . . . . . . . . . . . . . . . . . . . . . . . . . 1 Intel | -11 -10 -10 -9 -9 -9 -8 -8 -8 -7 -7 -7 -7 -7 -7 -6 -6 -6 -6 -6 -6 -6 -6 -6 -5 -5 -5 -5 -4 -4 -4 -4 -4 -3 -3 -3 -3 -2 -2 -2 -1 -1 ------- Run | Yrd Mat Min Mat Min Exi Min Mat Gar Fac Was Fac Low Low Zio Pro Fac Was Fac Ext Cet Arc Hub Gar Fac Upp Upp Zhi Pro Fac Upp Upp War Pro Res Arm Lab Res Qua Sec Acc Com Active Infowar (turns) 22370 | 19 674 . 349 304 32 . . . 1149 226 1652 511 310 781 478 247 . 1118 1232 209 556 556 529 634 365 226 71 630 984 198 298 1124 391 1525 1178 245 1295 175 674 507 918 Optics 8208 | . . . . . . . . . . . 213 511 310 257 . . . 555 1232 209 556 556 529 634 365 226 71 630 984 198 172 . . . . . . . . . . Sensors 18926 | . . . 349 304 32 . . . 1149 226 1652 511 3 . . . . 1118 1232 209 556 556 529 634 365 226 71 630 982 198 298 1122 391 1379 1103 243 1281 175 668 482 252 Zeronet 7 | . . . . . . . . . . . . . . . . . . . . . . . . . . . . . . . . . . . 7 . . . . . . Terrain 201 | 19 179 . . . . . . . . . . . . . . . . . . . . . . . . . . . . . . . . . . . 3 . . . . Seismic 194 | 16 178 . . . . . . . . . . . . . . . . . . . . . . . . . . . . . . . . . . . . . . . . T.N.C. 495 | . 495 . . . . . . . . . . . . . . . . . . . . . . . . . . . . . . . . . . . . . . . . Jamming 9390 | . . . . . . . . . . . . . . 524 478 247 . . . . . . . . 1 . . . . . 124 1120 391 1525 1175 243 1291 175 672 507 917 ECM 4 | . . . . . . . . . . . . . . . . . . . . . . . . . . . . . . . . . . . 1 . 2 . . . 1 Robot Analysis Total 14 | . 1 . 1 . . 4 2 . 2 . . . . . . . . . . . . . . . . . 4 . . . . . . . . . . . . . . Derelict Logs Recovered 18 | . . 2 . 2 . . . . . . . 2 3 1 1 . . . . . . . . . 2 1 . 1 . 2 1 . . . . . . . . . . Drone Launches 105 | . . . . . . . . . . . . . . . . 5 . 1 2 . . . . 1 . . . . . . . 94 . . 2 . . . . . . Drone Recoveries 14 | . . . . . . . . . . . . . . . . 5 . 1 2 . . . . 1 . . . . . . . 4 . . 1 . . . . . . Zionite Intel Received 95 | . . . . . . . . . . . . . . . . 8 . 12 1 . . 7 . 2 . . . . 14 . . . . 11 6 . 14 1 10 2 7 Main Access 2 | . . . . . . . . . . . . . . . . . . . . . . . . . . . . . . . . . . . . . . . 1 . 1 Branch Access 2 | . . . . . . . . . . . . . . . . . . . . . . . . . . . . . 1 . . . . . 1 . . . . . . Emergency Access 5 | . . . . . . . . . . . . . . . . . . . . . . 1 . . . . . . 1 . . . . 1 . . 1 . . . 1 Guard Positions 4 | . . . . . . . . . . . . . . . . . . 1 . . . 1 . . . . . . 1 . . . . 1 . . . . . . . Component Stockpiles 5 | . . . . . . . . . . . . . . . . 1 . . . . . 1 . . . . . . 1 . . . . 1 1 . . . . . . Prototype Stockpiles 7 | . . . . . . . . . . . . . . . . 1 . 1 . . . . . . . . . . 1 . . . . 1 1 . 1 . 1 . . Component Schematics 6 | . . . . . . . . . . . . . . . . 2 . . . . . . . . . . . . . . . . . 1 . . 2 . . . 1 Prototype Schematics 13 | . . . . . . . . . . . . . . . . 1 . 2 . . . . . . . . . . 1 . . . . 1 1 . 3 . 2 . 2 Unaware Schematics 10 | . . . . . . . . . . . . . . . . . . 3 1 . . . . . . . . . . . . . . 1 . . 2 . 2 1 . Unaware Analyses 16 | . . . . . . . . . . . . . . . . . . 2 . . . 2 . 1 . . . . 3 . . . . 2 1 . 2 1 2 . . Trap Installations 4 | . . . . . . . . . . . . . . . . 1 . 1 . . . . . . . . . . 1 . . . . . . . . . . 1 . Active Terminals 5 | . . . . . . . . . . . . . . . . . . 1 . . . . . . . . . . 1 . . . . 1 . . . . 1 . 1 Active Garrisons 7 | . . . . . . . . . . . . . . . . 1 . . . . . 1 . 1 . . . . 1 . . . . . 1 . 1 . . . 1 Depthwide Sectors/0 4 | . . . . . . . . . . . . . . . . . . 1 . . . . . . . . . . 1 . . . . 1 . . 1 . . . . Depthwide Sectors/-1 5 | . . . . . . . . . . . . . . . . 1 . . . . . 1 . . . . . . 1 . . . . . . . 1 . 1 . . Exploration | -11 -10 -10 -9 -9 -9 -8 -8 -8 -7 -7 -7 -7 -7 -7 -6 -6 -6 -6 -6 -6 -6 -6 -6 -5 -5 -5 -5 -4 -4 -4 -4 -4 -3 -3 -3 -3 -2 -2 -2 -1 -1 ------------- Run | Yrd Mat Min Mat Min Exi Min Mat Gar Fac Was Fac Low Low Zio Pro Fac Was Fac Ext Cet Arc Hub Gar Fac Upp Upp Zhi Pro Fac Upp Upp War Pro Res Arm Lab Res Qua Sec Acc Com Turns Passed 26624 | 51 852 254 576 304 104 300 667 604 1186 226 1652 511 310 781 478 1065 152 1138 1232 209 556 556 529 634 365 226 71 630 984 198 298 1129 391 1525 1178 245 1295 175 674 507 1806 Spaces Moved 39799 | 37 771 554 968 635 218 540 950 822 1620 203 2179 944 571 965 675 1532 261 1659 1146 180 129 920 584 744 772 369 167 719 2086 623 734 985 789 2496 1557 289 2231 501 1251 1137 3286 Core 10 | 9 1 . . . . . . . . . . . . . . . . . . . . . . . . . . . . . . . . . . . . . . . . Treads . | . . . . . . . . . . . . . . . . . . . . . . . . . . . . . . . . . . . . . . . . . . Legs 177 | 28 149 . . . . . . . . . . . . . . . . . . . . . . . . . . . . . . . . . . . . . . . . Wheels . | . . . . . . . . . . . . . . . . . . . . . . . . . . . . . . . . . . . . . . . . . . Hover 34386 | . 372 . . . . . . . 1330 203 2179 944 571 965 675 1532 261 1659 1146 180 129 920 584 744 772 369 167 719 2086 623 734 985 789 2496 1557 289 2231 501 1251 1137 3286 Flight 5226 | . 249 554 968 635 218 540 950 822 290 . . . . . . . . . . . . . . . . . . . . . . . . . . . . . . . . Fastest Speed 13 | 50 32 32 28 28 28 28 28 31 31 45 42 42 42 42 42 40 40 34 34 34 34 34 15 34 34 34 34 34 15 28 28 16 19 14 17 13 13 13 26 26 13 Average Speed 32 | 102 61 32 31 28 28 28 30 31 44 46 42 42 42 42 42 41 40 36 34 34 34 34 33 34 34 34 34 38 28 28 28 40 23 23 25 25 25 25 26 26 23 Slowest Speed 120 | 120 120 32 32 28 28 28 34 31 108 108 108 42 42 42 42 98 40 40 34 34 34 34 34 34 34 34 34 88 36 28 28 83 24 28 34 26 80 26 26 26 80 Overloaded Moves 1317 | . . . . . . . . . . . . . . . . . . . . . . . 1 . . . . . 16 . . 7 6 222 92 15 169 9 . . 780 Propulsion Burnouts . | . . . . . . . . . . . . . . . . . . . . . . . . . . . . . . . . . . . . . . . . . . Robots Hopped 57 | . 1 7 20 8 . 7 10 . 4 . . . . . . . . . . . . . . . . . . . . . . . . . . . . . . . . Potential Cave-ins 28 | . . . . 1 . . . . . . . . . . . . . . . . . . . 4 . . . . 2 . . 1 . 13 . . 2 . . . 5 Cave-ins Triggered . | . . . . . . . . . . . . . . . . . . . . . . . . . . . . . . . . . . . . . . . . . . Exploration Rate (%) 72 | 3 94 96 92 99 61 92 67 69 48 87 54 95 78 90 81 38 94 52 97 60 74 77 59 20 93 57 63 91 67 93 88 95 95 61 76 91 73 47 74 28 59 Regions Visited 41 Branch Regions 25 Pre-discovered Areas 60 | . 2 1 6 1 . . 3 . 2 . 2 2 . 1 . 4 . 10 . . . 4 . . . . 3 . 9 . . . . 4 . . 4 . 2 . . Known Exits Taken 31 | . . . 1 1 . 1 1 . . . 1 1 1 1 1 . . 1 1 1 1 1 . 1 1 1 1 1 1 1 1 1 1 1 1 1 1 1 1 1 . Unknown Exits Taken 4 | 1 1 1 . . 1 . . . . . . . . . . . . . . . . . . . . . . . . . . . . . . . . . . . . Scrap Searched 40 | . . 1 . 1 . 1 . . . . . 4 6 4 4 . . . . . . . . . 4 1 . 2 . 2 5 . 5 . . . . . . . . Spaces Dug 211 | . . . . . . . . . . . 8 2 . . . 37 . 6 . . . 9 . 35 2 . . 4 8 . . . 1 19 8 . 56 1 3 7 5 Terrain Destroyed 1573 | . . . 16 28 . . . . 3 2 83 20 14 . 7 131 1 25 32 5 7 186 18 47 13 14 . 31 148 11 5 12 6 80 30 . 259 31 6 27 275 Melee . | . . . . . . . . . . . . . . . . . . . . . . . . . . . . . . . . . . . . . . . . . . Projectile 565 | . . . . . . . . . 3 2 43 20 14 . 7 20 1 15 19 5 7 29 18 47 13 14 . 31 23 1 5 12 6 80 30 . 33 2 6 15 44 AOE 1008 | . . . 16 28 . . . . . . 40 . . . . 111 . 10 13 . . 157 . . . . . . 125 10 . . . . . . 226 29 . 12 231 Terrain Rammed . | . . . . . . . . . . . . . . . . . . . . . . . . . . . . . . . . . . . . . . . . . . Walls Destroyed . | . . . . . . . . . . . . . . . . . . . . . . . . . . . . . . . . . . . . . . . . . . Machines Disabled . | . . . . . . . . . . . . . . . . . . . . . . . . . . . . . . . . . . . . . . . . . . Actions | -11 -10 -10 -9 -9 -9 -8 -8 -8 -7 -7 -7 -7 -7 -7 -6 -6 -6 -6 -6 -6 -6 -6 -6 -5 -5 -5 -5 -4 -4 -4 -4 -4 -3 -3 -3 -3 -2 -2 -2 -1 -1 --------- Run | Yrd Mat Min Mat Min Exi Min Mat Gar Fac Was Fac Low Low Zio Pro Fac Was Fac Ext Cet Arc Hub Gar Fac Upp Upp Zhi Pro Fac Upp Upp War Pro Res Arm Lab Res Qua Sec Acc Com Total 50162 | 44 980 599 1106 723 262 620 1127 1023 1966 296 2682 1004 612 1339 841 1815 293 2093 1811 253 602 1047 773 1049 823 415 180 976 2358 638 778 1597 937 3150 2184 462 2943 545 1592 1343 4281 Wait 5087 | . 61 31 35 77 35 42 54 75 200 43 219 13 11 368 125 114 . 313 327 . 434 23 26 237 2 12 . 166 126 8 . 489 79 325 330 117 210 1 131 84 144 Move 39649 | 36 768 539 933 618 217 525 929 821 1612 202 2178 943 570 964 674 1532 260 1658 1145 179 128 920 581 743 771 368 166 718 2085 622 733 984 788 2495 1556 288 2229 500 1250 1136 3285 Hop 51 | . 1 7 14 8 . 7 10 . 4 . . . . . . . . . . . . . . . . . . . . . . . . . . . . . . . . Pick Up 113 | . 2 . 1 . 4 . 1 . 5 1 3 2 1 2 1 4 . 3 1 1 2 . 1 1 1 . 4 1 4 1 . 3 . 10 4 12 5 4 2 1 25 Fast Attach 296 | 7 15 . 10 . . 3 5 2 15 2 22 . 1 1 . 12 2 9 . . 2 1 . 1 3 1 5 3 14 . . 15 . 5 15 15 49 2 15 23 21 Attach 47 | . . . . . 2 . . . 3 1 3 . . 1 . 3 . 3 . . . . . . . . 1 1 1 . 1 1 . 5 6 2 1 4 . 1 7 Detach 13 | . . . . . . . . . 1 1 2 . . . . . . 1 . . . . . . . . . . . . . 1 . 3 1 . . . . 1 2 Swap 154 | . 6 . 10 2 . . 4 1 9 1 5 . . . 1 16 . 16 7 1 . . . 2 . . . 1 5 . 2 . 1 7 17 . 3 3 9 8 17 Drop 366 | . 20 . 9 . 4 2 9 2 19 3 20 . . 2 2 14 2 14 . 1 3 . 1 2 4 . 4 3 15 1 2 15 . 14 19 25 51 6 11 23 44 Fire 2661 | 1 85 12 59 16 . 30 95 80 59 19 113 27 19 1 28 85 7 53 96 46 22 62 77 46 26 29 . 51 63 6 24 62 37 172 89 3 283 14 113 54 497 Melee 1 | . . . . . . . . . . . . . . . . . . . . . 1 . . . . . . . . . . . . . . . . . . . . Ram 6 | . . . . . . . . . . . . . . . . . . . . . . . . . . . . . 1 . . . . . . . 1 . . . 4 Kick . | . . . . . . . . . . . . . . . . . . . . . . . . . . . . . . . . . . . . . . . . . . Crush . | . . . . . . . . . . . . . . . . . . . . . . . . . . . . . . . . . . . . . . . . . . Escape Stasis 116 | . . . . . . . . 10 . . 23 . . . . 13 . . 8 . . 8 44 . . . . . . . . . . . . . 3 . . . 7 Rewire 187 | . . . . . . . . . . . . . . . . . . . 144 . . . . . . . . . . . . 2 . 1 40 . . . . . . Trap . | . . . . . . . . . . . . . . . . . . . . . . . . . . . . . . . . . . . . . . . . . . Miscellaneous 1415 | . 22 10 35 2 . 11 20 32 39 23 94 19 10 . 10 22 22 23 83 25 10 33 43 17 16 5 . 32 44 . 16 25 32 113 107 . 108 11 61 12 228 Route ------- -11/Scrapyard -10/Materials (discovered 5 exits: *Mat x3 / [*Min x2]) -10/Mines (discovered 2 exits: *Mat x2) -9/Materials (discovered 4 exits: *Mat x3 / *Min) -9/Mines (discovered 3 exits: *Mat x2 / *Exi) -9/Exiles (discovered 2 exits: *Min x2) -8/Mines (discovered 2 exits: *Mat x2) -8/Materials (discovered 2 exits: *Fac / Gar) -8/Garrison (discovered 3 exits: *Fac x3) -7/Factory (discovered 7 exits: *Fac x4 / Sto / *Low x2) -7/Waste -7/Factory (discovered 3 exits: *Fac / *Sto / *Low) -7/Lower Caves -7/Lower Caves (discovered 2 exits: *Fac / *Zio) -7/Zion -6/Proximity Caves -6/Factory (discovered 6 exits: *Fac x4 / *Low x2) -6/Waste -6/Factory (discovered 8 exits: *Fac x4 / *Low x2 / *Ext x2) -6/Extension (discovered 3 exits: *Fac x2 / *Cet) -6/Cetus (discovered 2 exits: *Fac / *Arc) -6/Archives -6/Hub_04(d) (discovered 4 exits: *Fac x3 / Gar) -6/Garrison (discovered 3 exits: *Fac x3) -5/Factory (discovered 5 exits: Fac x4 / *Upp) -5/Upper Caves -5/Upper Caves -5/Zhirov -4/Proximity Caves -4/Factory (discovered 5 exits: *Res x3 / *Upp x2) -4/Upper Caves -4/Upper Caves (discovered 2 exits: *Res / *War) -4/Warlord -3/Proximity Caves -3/Research (discovered 4 exits: *Res / *Arm / *Tes x2) -3/Armory (discovered 2 exits: *Res / *Lab) -3/Lab -2/Research (discovered 2 exits: *Acc / *Qua) -2/Quarantine (discovered 3 exits: *Acc / *Sec / *Frg) -2/Section 7 -1/Access -1/Command (discovered 2 exits: Sur x2) History --------- Turn | Location | Event 10 | -11/Scrapyard | Upgraded with Propulsion slot (x1) 10 | -11/Scrapyard | Upgraded with Utility slot (x1) 10 | -11/Scrapyard | Upgraded with Weapon slot (x1) 11 | -11/Scrapyard | Discovered new exit (range 16) 52 | -11/Scrapyard | Entered Materials 79 | -10/Materials | Discovered new exit (range 12) 311 | -10/Materials | Build established: Mutant 372 | -10/Materials | Discovered new exit (range 3) 405 | -10/Materials | Central database locked down 406 | -10/Materials | Discovered new exit (range 16) 576 | -10/Materials | Reached level 2 582 | -10/Materials | Discovered new exit (range 16) 645 | -10/Materials | Build established: Scavenger-Mutant 652 | -10/Materials | Derelicts attacked the area 806 | -10/Materials | Discovered new exit (range 7) 839 | -10/Materials | Reached level 3 848 | -10/Materials | Core integrity fell below 50% 904 | -10/Materials | Entered Mines 906 | -10/Mines | Discovered new exit (range 7) 941 | -10/Mines | Learned location of 2 exits from Materials 946 | -10/Mines | Learned location of Zion (-7) 952 | -10/Mines | Assisted by bots powering up and referring to "LRC-V3" 1032 | -10/Mines | Found a hidden stash of uninstalled traps 1036 | -10/Mines | Discovered new exit (range 11) 1136 | -10/Mines | Build established: Scavenger-Sprinter 1158 | -10/Mines | Entered Materials 1158 | -9/Materials | Accompanied by 3 allies 1159 | -9/Materials | Identified exit to Materials 1160 | -9/Materials | Reached level 4 1183 | -9/Materials | Central database locked down 1195 | -9/Materials | Discovered new exit (range 16) 1195 | -9/Materials | Reached level 5 1200 | -9/Materials | Upgraded with Propulsion slot (x1) 1200 | -9/Materials | Upgraded with Utility slot (x1) 1321 | -9/Materials | Upgraded with Propulsion slot (x1) 1321 | -9/Materials | Upgraded with Utility slot (x1) 1429 | -9/Materials | Identified exit to Mines 1498 | -9/Materials | Reached level 6 1609 | -9/Materials | Learned location of Recycling (-7) 1611 | -9/Materials | Discovered exit to Materials (range 16) 1613 | -9/Materials | Upgraded with Power slot (x1) 1672 | -9/Materials | Reached level 7 1698 | -9/Materials | Learned Storage trap positions 1730 | -9/Materials | Learned 4 Recycling zone layouts 1734 | -9/Materials | Entered Mines 1734 | -9/Mines | Accompanied by 4 allies 1737 | -9/Mines | Assembled infested the area 1738 | -9/Mines | A Derelict revealed a hidden shortcut to a safe place 1742 | -9/Mines | Assisted by a Guerilla fighting off Assembled 1759 | -9/Mines | Core integrity fell below 50% 1787 | -9/Mines | Lost 6 allies 1800 | -9/Mines | Destroyed 8 combat bots 1803 | -9/Mines | Discovered exit to Materials (range 9) 1885 | -9/Mines | Learned 8 Materials zone layouts 1907 | -9/Mines | A weapon hastily lodged in a ceiling crevice suddenly fell to the ground 1907 | -9/Mines | Discovered exit to Materials (range 15) 1961 | -9/Mines | Deemed a non-threat by the Exiles lab entrance 1961 | -9/Mines | Discovered new exit (range 5) 1961 | -9/Mines | Identified exit to Exiles 2038 | -9/Mines | Entered Exiles 2038 | -9/Exiles | Accompanied by 2 allies 2042 | -9/Exiles | Discovered new exit (range 15) 2045 | -9/Exiles | Met 8R-AWN 2050 | -9/Exiles | Met EX-HEX 2058 | -9/Exiles | Met EX-BIN 2062 | -9/Exiles | Aligned with FarCom system 2062 | -9/Exiles | Given EX-Vault access code 2068 | -9/Exiles | Led the pair of lost Derelicts to a safe place 2069 | -9/Exiles | Opened EX-Vault 2074 | -9/Exiles | Found Modified TNC 2075 | -9/Exiles | Found Firepult 2078 | -9/Exiles | Found Field Lobotomy Kit 2086 | -9/Exiles | Warned to stay clear of 0b10 Research branches 2095 | -9/Exiles | Met EX-DEC 2105 | -9/Exiles | Discovered new exit (range 10) 2142 | -9/Exiles | Stole two prototypes: Modified TNC, Field Lobotomy Kit 2142 | -9/Exiles | Entered Mines 2144 | -8/Mines | Reached level 8 2146 | -8/Mines | Discovered exit to Materials (range 5) 2166 | -8/Mines | Discovered exit to Materials (range 5) 2190 | -8/Mines | Core integrity fell below 20% 2358 | -8/Mines | Build established: Hacker-Sprinter 2420 | -8/Mines | Upgraded with Utility slot (x1) 2442 | -8/Mines | Entered Materials 2443 | -8/Materials | Identified exit to Factory 2443 | -8/Materials | Core integrity fell below 50% 2444 | -8/Materials | Reached level 9 2509 | -8/Materials | Reached level 10 2729 | -8/Materials | Reached level 11 2793 | -8/Materials | Destroyed 9 combat bots 2803 | -8/Materials | Learned Factory emergency access door positions 2921 | -8/Materials | Learned location of Extension (-6) 2979 | -8/Materials | Learned 2 Storage zone layouts 3028 | -8/Materials | Learned Storage emergency access door positions 3068 | -8/Materials | Learned location of 1 exit from Lower Caves 3108 | -8/Materials | Identified exit to Garrison 3109 | -8/Materials | Entered Garrison 3111 | -8/Garrison | Reached level 12 3115 | -8/Garrison | Triggered checkpoint 3154 | -8/Garrison | Core integrity fell below 20% 3172 | -8/Garrison | Garrison Relay disabled 3353 | -8/Garrison | Triggered checkpoint 3398 | -8/Garrison | Garrison Relay disabled 3444 | -8/Garrison | Garrison Relay disabled 3453 | -8/Garrison | Learned Factory security intel 3488 | -8/Garrison | Discovered exit to Factory (range 13) 3505 | -8/Garrison | Triggered checkpoint 3511 | -8/Garrison | Reached level 13 3594 | -8/Garrison | Discovered exit to Factory (range 12) 3634 | -8/Garrison | Garrison Relay disabled 3639 | -8/Garrison | Triggered checkpoint 3673 | -8/Garrison | Discovered exit to Factory (range 45) 3673 | -8/Garrison | Discovered exit to Factory (range 22) 3673 | -8/Garrison | Discovered exit to Factory (range 59) 3713 | -8/Garrison | Entered Factory 3714 | -7/Factory | Identified exit to Storage 3715 | -7/Factory | FarCom data flow suspended 3715 | -7/Factory | Reached level 14 3727 | -7/Factory | Upgraded with Utility slot (x1) 3752 | -7/Factory | Repaired Xenon Bombardment Thruster 3851 | -7/Factory | Fabricated Antigrav System (x2) 3925 | -7/Factory | Core integrity fell below 50% 4007 | -7/Factory | Upgraded with Utility slot (x1) 4026 | -7/Factory | Garrison activated, responded to threat 4096 | -7/Factory | Reached level 15 4156 | -7/Factory | Build established: Hacker-Mutant 4169 | -7/Factory | Fabricated Antigrav System (x2) 4227 | -7/Factory | Discovered new exit (range 7) 4230 | -7/Factory | Identified exit to Factory 4391 | -7/Factory | Core integrity fell below 20% 4402 | -7/Factory | Discovered new exit (range 15) 4564 | -7/Factory | Fabricated Hvy. Ion Cannon? 4613 | -7/Factory | Identified exit to Lower Caves 4809 | -7/Factory | Learned location of 1 exit from Cetus 4871 | -7/Factory | Build established: Machinist-Mutant 4885 | -7/Factory | Destroyed 7 combat bots 4899 | -7/Factory | Sucked down chute 4899 | -7/Factory | Entered Waste 4900 | -7/Waste | Met a frightened Derelict 4905 | -7/Waste | Spotted C-40 Crusher 4921 | -7/Waste | Allies destroyed C-40 Crusher 4957 | -7/Waste | Spotted C-40 Crusher 4967 | -7/Waste | Destroyed C-40 Crusher 4989 | -7/Waste | Warlord forces began an assault 4997 | -7/Waste | Spotted C-40 Crusher 4997 | -7/Waste | Spotted C-40 Crusher 5011 | -7/Waste | Allies destroyed C-40 Crusher 5016 | -7/Waste | Destroyed C-40 Crusher 5034 | -7/Waste | Spotted C-40 Crusher 5043 | -7/Waste | Lost 3 allies 5043 | -7/Waste | Allies destroyed C-40 Crusher 5047 | -7/Waste | Spotted C-40 Crusher 5047 | -7/Waste | Allies destroyed C-40 Crusher 5084 | -7/Waste | Discovered new exit (range 13) 5091 | -7/Waste | Identified exit to Factory 5125 | -7/Waste | Entered Factory 5125 | -7/Factory | Accompanied by 17 allies 5148 | -7/Factory | Reached level 16 5185 | -7/Factory | Discovered exit to Storage (range 15) 5244 | -7/Factory | Garrison activated, responded to threat 5256 | -7/Factory | Upgraded with Propulsion slot (x1) 5256 | -7/Factory | Upgraded with Utility slot (x1) 5326 | -7/Factory | Build established: Hacker-Mutant 5485 | -7/Factory | Reached level 17 5495 | -7/Factory | Discovered exit to Factory (range 16) 5525 | -7/Factory | First assault squad dispatched 5649 | -7/Factory | Discovered exit to Lower Caves (range 6) 5786 | -7/Factory | Repaired Broken Adv. System Restoration Module? 5788 | -7/Factory | Fabricated Lrn. Phase Cannon (x1) 6171 | -7/Factory | Reached level 18 6303 | -7/Factory | Cargo convoy interrupted 6394 | -7/Factory | Destroyed 7 combat bots 6777 | -7/Factory | Entered Lower Caves 6778 | -7/Lower Caves | Identified exit to Lower Caves 6778 | -7/Lower Caves | Field Lobotomy Kit stolen by Master Thief 6779 | -7/Lower Caves | Encountered a Master Thief 6785 | -7/Lower Caves | Met a Warlord Commander 6786 | -7/Lower Caves | Learned location of Warlord (-4) 6787 | -7/Lower Caves | Warlord Commander delivered Encrypted Comm Array 6803 | -7/Lower Caves | Learned Factory garrison access intel 6853 | -7/Lower Caves | Build established: Hacker-Scout 6946 | -7/Lower Caves | Destroyed 7 combat bots 6950 | -7/Lower Caves | Learned location of 1 exit from Factory 6950 | -7/Lower Caves | Learned 8 Factory zone layouts 6950 | -7/Lower Caves | Learned Research trap positions 6950 | -7/Lower Caves | Learned Armory stockpile data 6950 | -7/Lower Caves | Learned Armory terminal intel 6969 | -7/Lower Caves | Spotted B-75 Beast 7056 | -7/Lower Caves | Encountered a Warlord checkpoint 7105 | -7/Lower Caves | Destroyed B-75 Beast 7132 | -7/Lower Caves | Lost 3 allies 7182 | -7/Lower Caves | Attacked by a delusional Derelict stockpiling parts 7288 | -7/Lower Caves | Entered another Lower Caves area 7289 | -7/Lower Caves | Modified TNC stolen by Master Thief 7290 | -7/Lower Caves | Encountered a Master Thief 7290 | -7/Lower Caves | Encountered a Master Thief 7291 | -7/Lower Caves | Imp. Sensor Array stolen by Master Thief 7298 | -7/Lower Caves | Encountered a Master Thief 7316 | -7/Lower Caves | Lrn. Phase Cannon stolen by Master Thief 7333 | -7/Lower Caves | Learned Factory terminal intel 7343 | -7/Lower Caves | Learned 4 Factory zone layouts 7372 | -7/Lower Caves | Discovered exit to Factory (range 14) 7511 | -7/Lower Caves | Discovered new exit (range 9) 7515 | -7/Lower Caves | Identified exit to Zion 7592 | -7/Lower Caves | Build established: Hacker-Mutant 7598 | -7/Lower Caves | Entered Zion 7656 | -7/Zion | Discovered new exit (range 20) 7663 | -7/Zion | Given A8's code to call for help 7665 | -7/Zion | Identified exit to Proximity Caves 7694 | -7/Zion | Received a visual enhancement algorithm 7694 | -7/Zion | Ran a visual enhancement algorithm 7849 | -7/Zion | Learned location of Quarantine (-2) 7855 | -7/Zion | Given the Hacking Drone Bay 7856 | -7/Zion | Found Prototype Device 7864 | -7/Zion | Learned location of 1 exit from Lower Caves 7906 | -7/Zion | Met Imprinter 7913 | -7/Zion | Imprinted 7915 | -7/Zion | Declared Zion's savior 8379 | -7/Zion | Entered Proximity Caves 8379 | -6/Proximity Caves | Accompanied by 4 allies 8381 | -6/Proximity Caves | Reached level 19 8466 | -6/Proximity Caves | Spotter reported a threat 8479 | -6/Proximity Caves | Spotter reported a threat 8526 | -6/Proximity Caves | Spotter reported a threat 8532 | -6/Proximity Caves | Spotter reported a threat 8579 | -6/Proximity Caves | Spotter reported a threat 8585 | -6/Proximity Caves | Spotter reported a threat 8633 | -6/Proximity Caves | Spotter reported a threat 8654 | -6/Proximity Caves | Attracted the attention of an 0b10 checkpoint 8755 | -6/Proximity Caves | Encountered a Derelict sapper outpost 8787 | -6/Proximity Caves | Learned location of 1 exit from Factory 8790 | -6/Proximity Caves | Discovered exit to Factory (range 7) 8857 | -6/Proximity Caves | Entered Factory 8857 | -6/Factory | Accompanied by 1 ally 8858 | -6/Factory | Identified exit to Lower Caves 8859 | -6/Factory | Identified exit to Factory 8860 | -6/Factory | Loaded intel: 27 terminal locations 8861 | -6/Factory | Loaded intel: 4 garrison access locations 8978 | -6/Factory | Core integrity fell below 50% 8995 | -6/Factory | Discovered exit to Factory (range 5) 9057 | -6/Factory | Found Unknown Protection 9057 | -6/Factory | Identified Hvy. Reactive Plating 9091 | -6/Factory | Identified Hacking Drone Bay 9125 | -6/Factory | Retrieved Zion intel report: Active Garrisons 9207 | -6/Factory | Search patrols dispatched 9229 | -6/Factory | Reached level 20 9277 | -6/Factory | Retrieved Zion intel report: Prototype Schematics 9305 | -6/Factory | Retrieved Zion intel report: Depthwide Sectors/-5 9381 | -6/Factory | Allied Derelicts emerged from ambush trap array 9417 | -6/Factory | Retrieved Zion intel report: Component Stockpiles 9442 | -6/Factory | Fabricated Adv. System Restoration Module (x2) 9523 | -6/Factory | Retrieved Zion intel report: Prototype Stockpiles 9535 | -6/Factory | Fabricated Cld. Aerolev Unit (x1) 9559 | -6/Factory | Core integrity fell below 20% 9592 | -6/Factory | Retrieved Zion intel report: Component Schematics 9634 | -6/Factory | Spotted B-75 Beast 9637 | -6/Factory | Retrieved Zion intel report: Trap Installations 9643 | -6/Factory | Retrieved Zion intel report: Component Schematics 9746 | -6/Factory | Destroyed 7 combat bots 9778 | -6/Factory | Fabricated Cld. Aerolev Unit? 9907 | -6/Factory | First assault squad dispatched 9922 | -6/Factory | Sucked down chute 9922 | -6/Factory | Entered Waste 9922 | -6/Waste | The area was eerily silent 10042 | -6/Waste | Found Prototype Device 10042 | -6/Waste | Identified Exp. Thermal Defense Suite 10054 | -6/Waste | Discovered new exit (range 13) 10073 | -6/Waste | Identified exit to Factory 10074 | -6/Waste | Entered Factory 10163 | -6/Factory | Retrieved Zion intel report: Trap Installations 10366 | -6/Factory | Fabricated Cld. Aerolev Unit? 10403 | -6/Factory | Reached level 21 10481 | -6/Factory | Fabricated Cld. Aerolev Unit (x1) 10548 | -6/Factory | Unchained authorized (CL-0N3) 10591 | -6/Factory | Discovered exit to Factory (range 13) 10638 | -6/Factory | Retrieved Zion intel report: Unaware Analyses 10652 | -6/Factory | Retrieved Zion intel report: Prototype Schematics 10656 | -6/Factory | Upgraded with Utility slot (x1) 10685 | -6/Factory | Discovered exit to Lower Caves (range 12) 10686 | -6/Factory | Retrieved Zion intel report: Prototype Stockpiles 10737 | -6/Factory | Discovered exit to Factory (range 6) 10766 | -6/Factory | Retrieved Zion intel report: Prototype Schematics 10770 | -6/Factory | Retrieved Zion intel report: Guard Positions 10806 | -6/Factory | Retrieved Zion intel report: Unaware Schematics 10844 | -6/Factory | Retrieved Zion intel report: Active Terminals 10848 | -6/Factory | Discovered exit to Factory (range 5) 10871 | -6/Factory | Retrieved Zion intel report: Unaware Schematics 10911 | -6/Factory | U-05 Engineer reconstituted as Martyr 10914 | -6/Factory | Martyr reconstituted as CL-0N3 10998 | -6/Factory | Build established: Hacker-Scout 11034 | -6/Factory | Identified exit to Extension 11068 | -6/Factory | Retrieved Zion intel report: Depthwide Sectors/-6 11071 | -6/Factory | Retrieved Zion intel report: Unaware Analyses 11118 | -6/Factory | Fabricated Cld. Aerolev Unit (x1) 11167 | -6/Factory | Retrieved Zion intel report: Unaware Schematics 11212 | -6/Factory | Entered Extension 11269 | -6/Extension | Energy Cycler disabled 11269 | -6/Extension | Rescued a captive Derelict 11270 | -6/Extension | Rescued a captive Derelict 11270 | -6/Extension | Rescued a captive Derelict 11420 | -6/Extension | Unchained authorized (CL-0N3) 11499 | -6/Extension | Lost 4 allies 11640 | -6/Extension | A-15 Conveyor reconstituted as Hotshot 11640 | -6/Extension | Spotted Hotshot 11646 | -6/Extension | Destroyed Hotshot 11646 | -6/Extension | Hotshot reconstituted as CL-0N3 11677 | -6/Extension | Spotted B-75 Beast 11826 | -6/Extension | Destroyed B-75 Beast 11829 | -6/Extension | Spotted B-75 Beast 11869 | -6/Extension | Discovered exit to Factory (range 13) 11876 | -6/Extension | Allies destroyed B-75 Beast 11899 | -6/Extension | Lost 4 allies 12057 | -6/Extension | Retrieved Zion intel report: Unaware Schematics 12141 | -6/Extension | U-05 Engineer reconstituted as D-83 Annihilator 12144 | -6/Extension | D-83 Annihilator reconstituted as CL-0N3 12171 | -6/Extension | Discovered exit to Factory (range 10) 12171 | -6/Extension | Discovered new exit (range 6) 12173 | -6/Extension | Lost 5 allies 12221 | -6/Extension | Extracted ID and sensor layout for unrecognized location from A7's data core 12262 | -6/Extension | First assault squad dispatched 12262 | -6/Extension | Disrupted transfer network 12289 | -6/Extension | T-07 Excavator reconstituted as Executioner 12289 | -6/Extension | Spotted Executioner 12289 | -6/Extension | Allies destroyed Executioner 12289 | -6/Extension | Executioner reconstituted as CL-0N3 12368 | -6/Extension | Lost 6 allies 12442 | -6/Extension | Identified exit to Cetus 12444 | -6/Extension | Entered Cetus 12446 | -6/Cetus | Reached level 22 12449 | -6/Cetus | Spotted Cetus Guard 12450 | -6/Cetus | Spotted Cetus Guard 12454 | -6/Cetus | Spotted Cetus Guard 12454 | -6/Cetus | Spotted Cetus Guard 12470 | -6/Cetus | Destroyed Cetus Guard 12479 | -6/Cetus | Destroyed Cetus Guard 12491 | -6/Cetus | Destroyed Cetus Guard 12503 | -6/Cetus | Destroyed Cetus Guard 12535 | -6/Cetus | Cetus Manufacturing Module disabled 12543 | -6/Cetus | Discovered new exit (range 21) 12555 | -6/Cetus | Spotted Cetus Guard 12555 | -6/Cetus | Spotted Cetus Guard 12555 | -6/Cetus | Spotted Cetus Guard 12555 | -6/Cetus | Spotted Cetus Guard 12580 | -6/Cetus | Destroyed Cetus Guard 12590 | -6/Cetus | Destroyed Cetus Guard 12600 | -6/Cetus | Destroyed Cetus Guard 12609 | -6/Cetus | Destroyed Cetus Guard 12637 | -6/Cetus | Scared off Revision 17 12648 | -6/Cetus | Identified exit to Archives 12653 | -6/Cetus | Entered Archives 12686 | -6/Archives | Discovered new exit (range 22) 12745 | -6/Archives | Identified exit to Hub_04(d) 13209 | -6/Archives | Entered Hub_04(d) 13226 | -6/Hub_04(d) | Retrieved Zion intel report: Active Garrisons 13236 | -6/Hub_04(d) | Retrieved Zion intel report: Depthwide Sectors/-5 13242 | -6/Hub_04(d) | Retrieved Zion intel report: Unaware Analyses 13264 | -6/Hub_04(d) | Retrieved Zion intel report: Guard Positions 13265 | -6/Hub_04(d) | Retrieved Zion intel report: Component Stockpiles 13361 | -6/Hub_04(d) | Unchained authorized (CL-0N3) 13362 | -6/Hub_04(d) | Retrieved Zion intel report: Unaware Analyses 13366 | -6/Hub_04(d) | Discovered exit to Factory (range 18) 13448 | -6/Hub_04(d) | Discovered exit to Factory (range 14) 13546 | -6/Hub_04(d) | K-01 Serf reconstituted as Hotshot 13546 | -6/Hub_04(d) | Spotted Hotshot 13549 | -6/Hub_04(d) | Destroyed Hotshot 13549 | -6/Hub_04(d) | Hotshot reconstituted as CL-0N3 13604 | -6/Hub_04(d) | Retrieved Zion intel report: Emergency Access 13634 | -6/Hub_04(d) | Network Hub disabled 13642 | -6/Hub_04(d) | Spotted Lightning 13664 | -6/Hub_04(d) | W-25 Informer reconstituted as Striker 13664 | -6/Hub_04(d) | Spotted Striker 13665 | -6/Hub_04(d) | Destroyed Striker 13665 | -6/Hub_04(d) | Striker reconstituted as CL-0N3 13688 | -6/Hub_04(d) | Spotted Lightning 13740 | -6/Hub_04(d) | Discovered exit to Factory (range 19) 13752 | -6/Hub_04(d) | Spotted Lightning 13765 | -6/Hub_04(d) | Identified exit to Garrison 13765 | -6/Hub_04(d) | Entered Garrison 13815 | -6/Garrison | Garrison Relay disabled 13818 | -6/Garrison | Triggered checkpoint 13955 | -6/Garrison | Destroyed 7 combat bots 13961 | -6/Garrison | Triggered checkpoint 14021 | -6/Garrison | Triggered checkpoint 14023 | -6/Garrison | Destroyed 8 combat bots 14054 | -6/Garrison | Discovered exit to Factory (range 10) 14059 | -6/Garrison | Triggered checkpoint 14102 | -6/Garrison | Attempted to access garrison exit controls, blocked by remote lockdown 14193 | -6/Garrison | Discovered exit to Factory (range 21) 14208 | -6/Garrison | Attempted to access garrison exit controls, blocked by remote lockdown 14225 | -6/Garrison | Triggered checkpoint 14291 | -6/Garrison | Discovered exit to Factory (range 10) 14294 | -6/Garrison | Entered Factory 14296 | -5/Factory | Reached level 23 14319 | -5/Factory | Identified exit to Factory 14327 | -5/Factory | Retrieved Zion intel report: Active Garrisons 14347 | -5/Factory | Spotted B-75 Beast 14463 | -5/Factory | Retrieved Zion intel report: Unaware Analyses 14552 | -5/Factory | Discovered new exit (range 12) 14556 | -5/Factory | Identified exit to Upper Caves 14597 | -5/Factory | Fabricated Exp. Targeting Computer? 14894 | -5/Factory | First assault squad dispatched 14928 | -5/Factory | Entered Upper Caves 15125 | -5/Upper Caves | Encountered a Warlord checkpoint 15139 | -5/Upper Caves | Discovered new exit (range 6) 15141 | -5/Upper Caves | Identified exit to Upper Caves 15293 | -5/Upper Caves | Entered another Upper Caves area 15315 | -5/Upper Caves | Learned 8 Factory zone layouts 15457 | -5/Upper Caves | Discovered new exit (range 11) 15460 | -5/Upper Caves | Encountered a Master Thief 15460 | -5/Upper Caves | Encountered a Master Thief 15460 | -5/Upper Caves | Encountered a Master Thief 15462 | -5/Upper Caves | Modified TNC stolen by Master Thief 15463 | -5/Upper Caves | Encountered a Master Thief 15464 | -5/Upper Caves | Hacking Drone Bay stolen by Master Thief 15465 | -5/Upper Caves | Imp. Weapon Cycler stolen by Master Thief 15479 | -5/Upper Caves | Lrn. Phase Cannon stolen by Master Thief 15506 | -5/Upper Caves | Identified exit to Zhirov 15519 | -5/Upper Caves | Entered Zhirov 15519 | -5/Zhirov | Discovered new exit (range 3) 15521 | -5/Zhirov | Identified exit to Proximity Caves 15526 | -5/Zhirov | Met Zhirov 15533 | -5/Zhirov | Learned location of Command (-1) 15539 | -5/Zhirov | Zhirov requested help retrieving the SGEMP Prototype 15550 | -5/Zhirov | Found Alien Artifact 15555 | -5/Zhirov | Found Alien Artifact 15555 | -5/Zhirov | Identified Integrated Reactor 15555 | -5/Zhirov | Installed Integrated Reactor, increased core energy generation (+10) 15590 | -5/Zhirov | Entered Proximity Caves 15592 | -4/Proximity Caves | Reached level 24 15592 | -4/Proximity Caves | Spotter reported a threat 15686 | -4/Proximity Caves | Found Alien Artifact 15686 | -4/Proximity Caves | Identified Core Expander 15686 | -4/Proximity Caves | Installed Core Expander, added new Propulsion slot 15802 | -4/Proximity Caves | Spotted B-86 Titan 15940 | -4/Proximity Caves | Received a Behemoth hack from an annoying Tinkerer 16089 | -4/Proximity Caves | Learned location of 1 exit from Research 16174 | -4/Proximity Caves | Attracted the attention of an 0b10 checkpoint 16215 | -4/Proximity Caves | Discovered exit to Factory (range 5) 16220 | -4/Proximity Caves | Entered Factory 16221 | -4/Factory | Identified exit to Research 16222 | -4/Factory | Reached level 25 16294 | -4/Factory | Retrieved Zion intel report: Emergency Access 16402 | -4/Factory | Discovered exit to Research (range 4) 16411 | -4/Factory | Retrieved Zion intel report: Prototype Stockpiles 16428 | -4/Factory | Retrieved Zion intel report: Component Stockpiles 16515 | -4/Factory | Discovered new exit (range 5) 16516 | -4/Factory | Identified exit to Upper Caves 16632 | -4/Factory | Fabricated Exp. Heat Sink (x1) 16663 | -4/Factory | Found Prototype Processor 16663 | -4/Factory | Identified Exp. Signal Interpreter 16671 | -4/Factory | Retrieved Zion intel report: Depthwide Sectors/-4 16690 | -4/Factory | Retrieved Zion intel report: Depthwide Sectors/-3 16704 | -4/Factory | Retrieved Zion intel report: Active Garrisons 16708 | -4/Factory | Retrieved Zion intel report: Unaware Analyses 16711 | -4/Factory | Discovered exit to Research (range 19) 16810 | -4/Factory | Reached level 26 16831 | -4/Factory | Destroyed 8 combat bots 16840 | -4/Factory | Retrieved Zion intel report: Active Terminals 16844 | -4/Factory | Found Prototype Device 16844 | -4/Factory | Identified Adv. EM Shield 16863 | -4/Factory | Discovered exit to Upper Caves (range 7) 16877 | -4/Factory | Retrieved Zion intel report: Branch Access 16924 | -4/Factory | Retrieved Zion intel report: Trap Installations 16953 | -4/Factory | Retrieved Zion intel report: Guard Positions 16986 | -4/Factory | Retrieved Zion intel report: Unaware Analyses 17026 | -4/Factory | Retrieved Zion intel report: Prototype Schematics 17104 | -4/Factory | Retrieved Zion intel report: Unaware Analyses 17165 | -4/Factory | Fabricated Exp. Cooling System (x1) 17204 | -4/Factory | Entered Upper Caves 17284 | -4/Upper Caves | Learned 4 Research zone layouts 17290 | -4/Upper Caves | Entered an active Warlord outpost 17295 | -4/Upper Caves | Learned Armory emergency access door positions 17295 | -4/Upper Caves | Learned Extension stockpile data 17295 | -4/Upper Caves | Learned Extension garrison access intel 17299 | -4/Upper Caves | Learned Research interactive machine intel 17320 | -4/Upper Caves | Encountered a Warlord checkpoint 17400 | -4/Upper Caves | Discovered new exit (range 8) 17402 | -4/Upper Caves | Identified exit to Upper Caves 17402 | -4/Upper Caves | Entered another Upper Caves area 17403 | -4/Upper Caves | Identified exit to Warlord 17404 | -4/Upper Caves | Encountered a Master Thief 17441 | -4/Upper Caves | Discovered exit to Research (range 16) 17482 | -4/Upper Caves | Encountered a Warlord checkpoint 17545 | -4/Upper Caves | Ambushed by wild Derelicts 17655 | -4/Upper Caves | Learned Research terminal intel 17700 | -4/Upper Caves | Entered Warlord 17716 | -4/Warlord | Discovered new exit (range 14) 17727 | -4/Warlord | Identified exit to Proximity Caves 17801 | -4/Warlord | Upgraded with Utility slot (x1) 17830 | -4/Warlord | Found Prototype Device 17830 | -4/Warlord | Identified Minesniffer Drone Bay 18044 | -4/Warlord | Visited the Vortex Lab 18049 | -4/Warlord | Warlord's base attacked by MAIN.C 18053 | -4/Warlord | Found Prototype Energy Cannon 18053 | -4/Warlord | Identified Vortex Cannon 18060 | -4/Warlord | Found Vortex Cannon 18099 | -4/Warlord | Build established: Hacker-Mutant 18399 | -4/Warlord | Warlord forces counterattacked 18445 | -4/Warlord | Found Prototype Reactor 18445 | -4/Warlord | Identified Vortex Chain Reactor 18447 | -4/Warlord | Upgraded with Propulsion slot (x1) 18453 | -4/Warlord | Found Prototype Device 18453 | -4/Warlord | Identified Exp. Phase Shifter 18460 | -4/Warlord | Spotted Executioner 18467 | -4/Warlord | Found Prototype Processor 18467 | -4/Warlord | Identified Exp. Core Analyzer 18469 | -4/Warlord | Upgraded with Utility slot (x1) 18515 | -4/Warlord | Spotted Executioner 18525 | -4/Warlord | Spotted Striker 18533 | -4/Warlord | Spotted Executioner 18544 | -4/Warlord | P-80 Master assimilated allied UZ-ZBR(b) 18545 | -4/Warlord | Destroyed Executioner 18583 | -4/Warlord | Destroyed Striker 18601 | -4/Warlord | Spotted Striker 18610 | -4/Warlord | Destroyed Striker 18619 | -4/Warlord | Lost 52 allies 18656 | -4/Warlord | Destroyed 8 combat bots 18679 | -4/Warlord | Spotted Striker 18680 | -4/Warlord | Lost 22 allies 18724 | -4/Warlord | Warlord base infiltrated, sounded retreat 18740 | -4/Warlord | Destroyed Striker 18750 | -4/Warlord | Build established: Hacker-Sprinter 18757 | -4/Warlord | Lost 13 allies 18763 | -4/Warlord | Reached level 27 18790 | -4/Warlord | Destroyed 7 combat bots 18801 | -4/Warlord | Spotted Executioner 18808 | -4/Warlord | Spotted Executioner 18814 | -4/Warlord | Core integrity fell below 50% 18822 | -4/Warlord | Attacked by Warlord forces 18829 | -4/Warlord | Entered Proximity Caves 18948 | -3/Proximity Caves | Spotted B-86 Titan 18959 | -3/Proximity Caves | Destroyed B-86 Titan 19134 | -3/Proximity Caves | Attracted the attention of an 0b10 checkpoint 19148 | -3/Proximity Caves | Discovered exit to Research (range 9) 19220 | -3/Proximity Caves | Entered Research 19221 | -3/Research | Identified exit to Testing 19222 | -3/Research | Reached level 28 19223 | -3/Research | Loaded intel: 67 trap records 19224 | -3/Research | Loaded intel: 47 interactive machine locations 19225 | -3/Research | Loaded intel: 24 terminal locations 19371 | -3/Research | Retrieved Zion intel report: Active Terminals 19495 | -3/Research | Reached level 29 19497 | -3/Research | Retrieved Zion intel report: Unaware Schematics 19498 | -3/Research | Zion Hacker squad teleported in 19530 | -3/Research | Retrieved Zion intel report: Depthwide Sectors/-3 19535 | -3/Research | Destroyed 15 combat bots 19578 | -3/Research | Discovered new exit (range 6) 19578 | -3/Research | Identified exit to Armory 19585 | -3/Research | Retrieved Zion intel report: Unaware Analyses 19611 | -3/Research | Upgraded with Utility slot (x1) 19762 | -3/Research | Fabricated Cld. Antigrav System (x1) 19867 | -3/Research | Fabricated Cld. Antigrav System (x1) 19917 | -3/Research | Retrieved Zion intel report: Component Stockpiles 19925 | -3/Research | Retrieved Zion intel report: Prototype Schematics 19977 | -3/Research | Retrieved Zion intel report: Component Schematics 20008 | -3/Research | Retrieved Zion intel report: Unaware Analyses 20128 | -3/Research | Discovered new exit (range 12) 20220 | -3/Research | First assault squad dispatched 20245 | -3/Research | Unchained authorized (6S-H0T) 20336 | -3/Research | Fabricated Cld. Antigrav System (x1) 20346 | -3/Research | Retrieved Zion intel report: Emergency Access 20405 | -3/Research | Spotted B-86 Titan 20452 | -3/Research | Spotted B-86 Titan 20455 | -3/Research | Retrieved Zion intel report: Guard Positions 20461 | -3/Research | Retrieved Zion intel report: Prototype Stockpiles 20464 | -3/Research | Enhanced Grunt warped into view, answering call for help 20464 | -3/Research | Enhanced Grunt warped into view, answering call for help 20485 | -3/Research | Allies destroyed B-86 Titan 20606 | -3/Research | Terminal network hard line cut 20632 | -3/Research | Discovered exit to Testing (range 5) 20745 | -3/Research | Entered Armory 20748 | -3/Armory | Loaded intel: 12 terminal locations 20823 | -3/Armory | Fabricated Cld. Antigrav System (x1) 20896 | -3/Armory | Fabricated Cld. Antigrav System (x1) 20897 | -3/Armory | Unchained authorized (6S-H0T) 20910 | -3/Armory | Reached level 30 20964 | -3/Armory | Found Prototype Device 20964 | -3/Armory | Identified Exp. ECM Suite 21035 | -3/Armory | Fabricated Enh. Nova Cannon? 21063 | -3/Armory | Found Prototype Device 21063 | -3/Armory | Identified Exp. Thermal Shield 21073 | -3/Armory | Retrieved Zion intel report: Component Stockpiles 21117 | -3/Armory | Retrieved Zion intel report: Branch Access 21132 | -3/Armory | Retrieved Zion intel report: Prototype Schematics 21144 | -3/Armory | Retrieved Zion intel report: Active Garrisons 21147 | -3/Armory | Retrieved Zion intel report: Unaware Analyses 21198 | -3/Armory | Destroyed 6S-H0T 21203 | -3/Armory | Found Prototype Device 21203 | -3/Armory | Identified Zeronet Interface 21232 | -3/Armory | Core integrity fell below 50% 21361 | -3/Armory | Spotted B-86 Titan 21396 | -3/Armory | Zion Heavy squad teleported in 21477 | -3/Armory | Retrieved Zion intel report: Prototype Stockpiles 21495 | -3/Armory | First assault squad dispatched 21527 | -3/Armory | Fabricated Cld. Antigrav System (x1) 21556 | -3/Armory | Zion Recon squad teleported in 21572 | -3/Armory | Discovered new exit (range 4) 21575 | -3/Armory | Identified exit to Lab 21588 | -3/Armory | Zion Heavy squad teleported in 21634 | -3/Armory | Lost 6 allies 21674 | -3/Armory | Found Quantum Capacitor 21689 | -3/Armory | Discovered new exit (range 4) 21690 | -3/Armory | Identified exit to Research 21761 | -3/Armory | Reached level 31 21852 | -3/Armory | P-80 Master assimilated allied Swordsman 8b 21908 | -3/Armory | Fabricated Cld. Antigrav System (x1) 21923 | -3/Armory | Entered Lab 21923 | -3/Lab | Discovered exit to Research (range 9) 21926 | -3/Lab | Hidden lab's door opened automatically 21926 | -3/Lab | Sensor layout match revealed 21927 | -3/Lab | Gained access to the hidden lab's interior 21950 | -3/Lab | Found Integrated Reactor 21950 | -3/Lab | Installed Integrated Reactor, increased core energy generation (+10) 21964 | -3/Lab | Found Prototype Protection 21965 | -3/Lab | Found Prototype Energy Gun 21967 | -3/Lab | Found Prototype Energy Cannon 21969 | -3/Lab | Found Prototype Hackware 21973 | -3/Lab | Build established: Machinist-Sprinter 22041 | -3/Lab | Found Alien Artifact 22044 | -3/Lab | Found Alien Artifact 22101 | -3/Lab | Found Alien Artifact 22101 | -3/Lab | Identified Core Reset Matrix 22101 | -3/Lab | Identified Transdimensional Reconstructor 22101 | -3/Lab | Identified Core Regenerator 22101 | -3/Lab | Used Core Reset Matrix 22105 | -3/Lab | Discovered exit to Research (range 6) 22109 | -3/Lab | Identified Med. Regenerative Plating 22126 | -3/Lab | Identified Potential Cannon 22128 | -3/Lab | Identified Tachyon Dispersion Ray 22150 | -3/Lab | Upgraded with Utility slot (x1) 22168 | -3/Lab | Entered Research 22170 | -2/Research | Reached level 32 22214 | -2/Research | Identified Deep Network Scanner 22223 | -2/Research | Retrieved Zion intel report: Unaware Analyses 22226 | -2/Research | Retrieved Zion intel report: Depthwide Sectors/-2 22238 | -2/Research | Upgraded with Weapon slot (x1) 22451 | -2/Research | Retrieved Zion intel report: Prototype Schematics 22502 | -2/Research | Discovered new exit (range 4) 22504 | -2/Research | Identified exit to Quarantine 22625 | -2/Research | Spotted B-90 Cyclops 22633 | -2/Research | Retrieved Zion intel report: Unaware Analyses 22668 | -2/Research | First assault squad dispatched 22668 | -2/Research | Destroyed 13 combat bots 22743 | -2/Research | Found Prototype Device 22743 | -2/Research | Identified Exp. Actuator Array 22777 | -2/Research | Destroyed 9 combat bots 22827 | -2/Research | Reached level 33 22862 | -2/Research | Destroyed 12 combat bots 22932 | -2/Research | Retrieved Zion intel report: Emergency Access 22945 | -2/Research | Retrieved Zion intel report: Component Schematics 22948 | -2/Research | Spotted B-90 Cyclops 22959 | -2/Research | Build established: Machinist-Scout 23014 | -2/Research | Retrieved Zion intel report: Prototype Schematics 23043 | -2/Research | Retrieved Zion intel report: Prototype Stockpiles 23059 | -2/Research | Retrieved Zion intel report: Prototype Schematics 23076 | -2/Research | Unchained authorized (QV-33N) 23085 | -2/Research | Retrieved Zion intel report: Component Schematics 23108 | -2/Research | Retrieved Zion intel report: Unaware Schematics 23117 | -2/Research | Discovered new exit (range 18) 23187 | -2/Research | Destroyed B-90 Cyclops 23200 | -2/Research | Retrieved Zion intel report: Depthwide Sectors/-1 23203 | -2/Research | Retrieved Zion intel report: Active Garrisons 23217 | -2/Research | Found Prototype Device 23217 | -2/Research | Identified Thermal Barrier 23245 | -2/Research | Fabricated Adv. Signal Interpreter (x2) 23327 | -2/Research | Retrieved Zion intel report: Unaware Schematics 23363 | -2/Research | High security lockdown imminent 23409 | -2/Research | Core integrity fell below 50% 23443 | -2/Research | High security lockdown engaged 23463 | -2/Research | Entered Quarantine 23464 | -2/Quarantine | Detected hypermatrix surge 23464 | -2/Quarantine | Sensed 11 artifacts in vicinity 23464 | -2/Quarantine | High security lockdown imminent 23467 | -2/Quarantine | Used Core Regenerator, restored core integrity (+400) 23472 | -2/Quarantine | Found Transdimensional Reconstructor 23486 | -2/Quarantine | Destroyed 15 combat bots 23504 | -2/Quarantine | Retrieved Zion intel report: Unaware Analyses 23544 | -2/Quarantine | High security lockdown engaged 23548 | -2/Quarantine | Reached level 34 23564 | -2/Quarantine | Discovered new exit (range 15) 23608 | -2/Quarantine | Spotted Fortress 23610 | -2/Quarantine | Destroyed Fortress 23635 | -2/Quarantine | Discovered new exit (range 6) 23635 | -2/Quarantine | Discovered new exit (range 7) 23636 | -2/Quarantine | Identified exit to Section 7 23637 | -2/Quarantine | Identified exit to Protoforge 23638 | -2/Quarantine | Entered Section 7 23639 | -2/Section 7 | Detected hypermatrix surge 23639 | -2/Section 7 | Sensed 21 artifacts in vicinity 23655 | -2/Section 7 | Retrieved Zion intel report: Active Terminals 23677 | -2/Section 7 | Retrieved Zion intel report: Unaware Analyses 23705 | -2/Section 7 | Found Core Reset Matrix 23708 | -2/Section 7 | Sensed 20 artifacts in vicinity 23712 | -2/Section 7 | Spotted S7 Guard 23718 | -2/Section 7 | Destroyed S7 Guard 23720 | -2/Section 7 | Found Core Membrane 23720 | -2/Section 7 | Installed Core Membrane, gained immunity to corruption 23726 | -2/Section 7 | Discovered new exit (range 12) 23788 | -2/Section 7 | Retrieved Zion intel report: Prototype Schematics 23809 | -2/Section 7 | Found Integrity Redistributor 23809 | -2/Section 7 | Used Integrity Redistributor, redistributed integrity from core (-153) 23847 | -2/Section 7 | Spotted B-90 Cyclops 23850 | -2/Section 7 | Retrieved Zion intel report: Unaware Analyses 23877 | -2/Section 7 | Retrieved Zion intel report: Depthwide Sectors/-1 23999 | -2/Section 7 | Retrieved Zion intel report: Main Access 23999 | -2/Section 7 | Identified exit to Access 24036 | -2/Section 7 | Retrieved Zion intel report: Prototype Schematics 24040 | -2/Section 7 | Retrieved Zion intel report: Unaware Schematics 24042 | -2/Section 7 | Retrieved Zion intel report: Prototype Stockpiles 24056 | -2/Section 7 | Retrieved Zion intel report: Unaware Schematics 24071 | -2/Section 7 | Spotted Executioner 24071 | -2/Section 7 | Spotted Executioner 24077 | -2/Section 7 | Destroyed Executioner 24083 | -2/Section 7 | Destroyed Executioner 24094 | -2/Section 7 | Found Corrupted Prototype Device 24094 | -2/Section 7 | Identified Adv. Kinecellerator 24151 | -2/Section 7 | Spotted B-99 Colossus 24170 | -2/Section 7 | Found LRC Energy Well 24170 | -2/Section 7 | Installed LRC Energy Well, increased energy storage capacity (+250) 24171 | -2/Section 7 | Found LRC Inertial Stabilizer 24171 | -2/Section 7 | Installed LRC Inertial Stabilizer, increased mass support (+10) 24185 | -2/Section 7 | Found Integrated Reactor 24185 | -2/Section 7 | Installed Integrated Reactor, increased core energy generation (+10) 24297 | -2/Section 7 | Spotted S7 Guard 24312 | -2/Section 7 | Entered Access 24396 | -1/Access | Reached level 35 24469 | -1/Access | Unchained authorized (QV-33N) 24477 | -1/Access | Discovered new exit (range 8) 24510 | -1/Access | Retrieved Zion intel report: Trap Installations 24562 | -1/Access | First assault squad dispatched 24582 | -1/Access | Fabricated Exp. Power Amplifier (x1) 24660 | -1/Access | Retrieved Zion intel report: Unaware Schematics 24737 | -1/Access | Build established: Hacker-Scout 24819 | -1/Access | Identified exit to Command 24819 | -1/Access | Entered Command 24903 | -1/Command | Retrieved Zion intel report: Active Terminals 24931 | -1/Command | Retrieved Zion intel report: Emergency Access 24962 | -1/Command | Retrieved Zion intel report: Prototype Schematics 24996 | -1/Command | Retrieved Zion intel report: Component Schematics 24998 | -1/Command | Retrieved Zion intel report: Main Access 24998 | -1/Command | Identified exit to Surface 25033 | -1/Command | Retrieved Zion intel report: Prototype Schematics 25062 | -1/Command | Reached level 36 25067 | -1/Command | Upgraded with Utility slot (x1) 25076 | -1/Command | Spotted Alpha 7 25076 | -1/Command | Spotted Alpha 7 25076 | -1/Command | Spotted Striker 25076 | -1/Command | Spotted Striker 25076 | -1/Command | Spotted Executioner 25076 | -1/Command | Spotted Executioner 25076 | -1/Command | Spotted Executioner 25076 | -1/Command | Spotted Executioner 25089 | -1/Command | Destroyed Striker 25091 | -1/Command | Destroyed Striker 25094 | -1/Command | Destroyed Executioner 25105 | -1/Command | Spotted B-99 Colossus 25127 | -1/Command | Build established: Hacker-Sprinter 25163 | -1/Command | Destroyed Executioner 25173 | -1/Command | Destroyed Executioner 25194 | -1/Command | Destroyed 8 combat bots 25226 | -1/Command | Destroyed Alpha 7 25276 | -1/Command | Found Corrupted Prototype Device 25276 | -1/Command | Identified Exp. ECM Suite 25376 | -1/Command | High security lockdown imminent 25394 | -1/Command | Phase Generator disabled 25403 | -1/Command | Retrieved Zion intel report: Active Garrisons 25456 | -1/Command | High security lockdown engaged 25466 | -1/Command | Spotted M Guard 25468 | -1/Command | Spotted M Guard 25468 | -1/Command | Spotted Combat Programmer 25468 | -1/Command | Spotted Combat Programmer 25477 | -1/Command | Destroyed Combat Programmer 25489 | -1/Command | Destroyed Combat Programmer 25499 | -1/Command | Destroyed M Guard 25504 | -1/Command | Destroyed M Guard 25504 | -1/Command | All MAIN.C guards destroyed 25506 | -1/Command | Found Corrupted Prototype Device 25506 | -1/Command | Identified Thermal Barrier 25507 | -1/Command | Spotted Striker 25507 | -1/Command | Spotted Executioner 25541 | -1/Command | Destroyed Striker 25560 | -1/Command | Destroyed Executioner 25566 | -1/Command | Found Corrupted Exp. Core Analyzer 25633 | -1/Command | Found Corrupted Prototype Reactor 25633 | -1/Command | Identified Zero-point Reactor 25684 | -1/Command | Destroyed 22 combat bots 25684 | -1/Command | Found Corrupted Prototype Device 25684 | -1/Command | Identified AEGIS Remote Shield 25693 | -1/Command | Found Corrupted Prototype Energy Cannon 25693 | -1/Command | Identified Cld. Nova Cannon 25766 | -1/Command | Spotted Investigator 25766 | -1/Command | Scanned by Researcher 25767 | -1/Command | Destroyed Investigator 25776 | -1/Command | Reached level 37 25918 | -1/Command | Destroyed 9 combat bots 25931 | -1/Command | Spotted Striker 25944 | -1/Command | Destroyed Striker 25965 | -1/Command | Destroyed 7 combat bots 25977 | -1/Command | Met MAIN.C 25985 | -1/Command | 0b10 Conduit disabled 26001 | -1/Command | Destroyed MAIN.C Shell 26002 | -1/Command | MAIN.C activated Command garrisons 26054 | -1/Command | Build established: Scavenger-Sprinter 26075 | -1/Command | Core integrity fell below 50% 26083 | -1/Command | Spotted Striker 26085 | -1/Command | Spotted Executioner 26087 | -1/Command | Emitted hypermatrix ping 26087 | -1/Command | Spotted Striker 26088 | -1/Command | Spotted Executioner 26088 | -1/Command | Spotted Executioner 26088 | -1/Command | Spotted Striker 26092 | -1/Command | Assembled emerged from beneath the floor 26105 | -1/Command | Destroyed Striker 26116 | -1/Command | Destroyed Striker 26143 | -1/Command | Destroyed Striker 26210 | -1/Command | Core integrity fell below 20% 26262 | -1/Command | Destroyed 27 combat bots 26330 | -1/Command | Assembled emerged from beneath the floor 26340 | -1/Command | Assembled emerged from beneath the floor 26378 | -1/Command | Assembled emerged from beneath the floor 26382 | -1/Command | Reached level 38 26435 | -1/Command | Destroyed 26 combat bots 26472 | -1/Command | Lost 8 allies 26481 | -1/Command | Assembled emerged from beneath the floor 26545 | -1/Command | Lost 6 allies 26625 | -1/Command | Destroyed by S-43 Plague with Heavy Machine Gun Last Messages --------------- 26598_ Penetrated by Slug. 26598_ Slug penetrates Wall. 26601_ Slug penetrates P-80 Master. 26605_ I-47 Archangel sends out distress signal. 26608_ Detected hypermatrix ping. 26610_ I-47 Archangel sends out distress signal. 26610_ Knocked back. 26612_ Dropped Protomatter-61. 26618_ Slammed into S-43 Plague. 26618_ Core Membrane filtered system corruption (2). 26619_ Slammed into S-43 Plague. 26619_ Destroyed Unknown Flight Unit. 26619_ S-43 Plague system corrupted by crushing effect. 26619_ S-43 Plague knocked back. 26620_ S-43 Plague system terminally corrupted. 26620_ Unknown Reactor fried. 26620_ Unknown Flight Unit fried. 26621_ Slug penetrates Wall. 26621_ Penetrated by Slug. 26621_ Slug penetrates Door. Map ----- +----------------------------------------------------+ | ##!##???# + " #?????????????????????? | | ?# ##???# [ " =!" #?????????????????????? | | ##/"##### % + = = " #?????????????????????? | | ## % %" "" ##??????????????????#### | | ## =!####"#"""" #???????????????????# | | ## [!# #####?????????????????## | | ## # +? ?????????????????# | | " ## # #?# #???????????####### | | "%" ## # #?# #???????????# =% | | " ## # #?# #???????????#%### | | ## #?# #???????????#%#?### | | ## ### #??????????##+##### | | ## + #????####### % !=!# ! | | ## # #????# # != ## | | !%! "#### = # ####### ###### "" # !! ## | | %%%[ |%%[ T" + ## | | %%* === ######### # "" | | =*%* [%! #???????# # ## | | * ![ %= % R #???????## ###+###### | | %= =%! % R== #????????# # # | | *%= ;####+%###+#######????# " #### | | != !! *# #????# # "" #??? | | # %%g!% =/%!R #????# #"""" #??? | | #### =#!%! =;[ s #????# #?""" #??? | | #??# !%|= # #????# #?"" #??? | | ???# #/ # g @ ###### #?? ???? | | ???# # # """" # # #?? ????? | | ???# + !; """" # # #??? ???? | | ???# # %% """" # # #???##?###??? | | ???# # = g """" +[[ # ######??????? | | ???# ##### %]=% =#[! + + #??????? | | ???# #???# % = % ! # # # #??????? | | ???# #???# % % * = # # #?? #??????? | | ???# #???###/## """###### # #?? #??????? | | ???# #?????# ### # "# ##????# # # #??????? | | #### #?????# #?###/##!#?????###### + #??????? | | "" # #?????# #?# # #??????????# # #??????? | | R""# #######+### *# #??????????# #?? #??????# | | "# # # !%# #???######## #????#??????# | | = # # [%[#!##### ######??????# | | # "" # !%=%= ##### #??????# | | + """" # *#|^ #???# +??????? | | "" # """" # =#! #???# #??????? | | ""= # "" # # ######+#######??????# | | Y % # # # # #???????# | | "" # ###### # ] #???????# | | "" #####+#####????# +%* #???????# | | #???????????# !^^ [! # #???????# | | #???????????# ^%! =%*# #???????# | | #???????????# |^ ![=# #???????# | +----------------------------------------------------+ Best States ------------- Heat Dissipation 151 Energy Generation 117 Energy Capacity 1390 Matter Stores 300 Matter Capacity 300 Sight Range 23 Robot Scan Range 23 Terrain Scan Range 16 Terrain Scan Density 10 Jamming Range 16 Power Amplification 40 EM Shielding 4 Corruption Block 15 Armor Coverage 225 Resistance: KI 15 Resistance: TH 15 Point Defense Rating 240 Phase Shifting 20 Evasion (%) 92 Targeting Accuracy 20 Core Analysis 12 Armor Integrity Analysis 40 Energy Filtering 30 Particle Charging 30 Offensive Hacking 40 Defensive Hacking 22 Authchip Count 2 Item Schematics ----------------- Cld. Impulse Thruster | -2/Section 7 | Z-intel Cld. Field Propulsion Drive | -2/Section 7 | Z-intel Quantum Shading Machine | -2/Section 7 | Z-intel Exp. Core Analyzer | -2/Section 7 | Z-intel Point Singularity Launcher | -2/Section 7 | Z-intel Cld. Nuclear Pulse Thruster | -2/Section 7 | Z-intel Adv. Plasma Rifle | -2/Section 7 | Z-intel Exp. Power Amplifier | -2/Section 7 | Z-intel Prc. Matter Filter | -2/Section 7 | Z-intel Enh. Armored Medium Treads | -2/Section 7 | Z-intel Exp. Matter Compressor | -2/Section 7 | Z-intel Lgt. Antimatter Cannon | -2/Section 7 | Z-intel Exp. Transmission Jammer | -2/Section 7 | Z-intel Exp. Focal Shield | -2/Section 7 | Z-intel Hvy. Tesla Rifle | -2/Section 7 | Z-intel Com. Tesla Bomb Launcher | -2/Section 7 | Z-intel Hds. Centrium Leg | -2/Section 7 | Z-intel Neutron Missile Launcher | -2/Section 7 | Z-intel Exp. Melee Analysis Suite | -2/Section 7 | Z-intel Gui. Micro-nuke Launcher | -2/Section 7 | Z-intel Exp. Energy Well | -2/Section 7 | Z-intel Hvy. Wave Gun | -2/Section 7 | Z-intel Com. Particle Reactor | -2/Section 7 | Z-intel Impulse Thruster | -1/Access | Extracted Enh. Force Lance | -1/Access | Extracted Imp. Propulsion Shielding | -1/Access | Extracted Lyr. Light Armor Plating | -1/Access | Extracted Triangulator | -1/Access | Extracted Hvy. Siege Treads | -1/Access | Extracted Adv. Actuator Array | -1/Access | Extracted Imp. Hardlight Generator | -1/Access | Extracted Cmb. Linear Gravjet | -1/Access | Extracted ECM Suite | -1/Access | Extracted Lance | -1/Access | Extracted Biometal Medium Treads | -1/Access | Extracted Imp. Melee Analysis Suite | -1/Access | Extracted Linear Gravjet | -1/Access | Extracted Centrium Leg | -1/Access | Extracted Imp. Focal Shield | -1/Access | Extracted Imp. Arc Projector | -1/Access | Extracted Imp. Particle Accelerator | -1/Command | Z-intel Coolant Network | -1/Command | Z-intel Com. Linear Accelerator | -1/Command | Z-intel Gravity Neutralizer | -1/Command | Z-intel Centrium Heavy Armor Plating | -1/Command | Z-intel Exp. Signal Interpreter | -1/Command | Z-intel Exp. Thermal Generator | -1/Command | Z-intel Imp. Q-thruster | -1/Command | Z-intel Exp. Q-thruster | -1/Command | Z-intel Seismic Detector | -1/Command | Z-intel Imp. Targeting Computer | -1/Command | Z-intel Adv. Drone Bay | -1/Command | Z-intel Field Propulsion Array | -1/Command | Z-intel Adv. Shield Generator | -1/Command | Z-intel Imp. Fusion Compressor | -1/Command | Z-intel Adv. Melee Analysis Suite | -1/Command | Z-intel Transport Network Coupler | -1/Command | Z-intel Biometal Leg | -1/Command | Z-intel Linear Accelerator | -1/Command | Z-intel Imp. Shock Absorption System | -1/Command | Z-intel Hardcell Cannon | -1/Command | Z-intel Imp. Matter Compressor | -1/Command | Z-intel Tiamat Missile Launcher | -1/Command | Z-intel Cld. Antigrav System | -1/Command | Z-intel Electron Diverter | -1/Command | Z-intel Spectral Analyzer | -1/Command | Z-intel Exp. Hacking Suite | -1/Command | Z-intel Proton Burst Cannon | -1/Command | Z-intel Ionic Axe | -1/Command | Z-intel Robot Schematics ------------------ C-65 Expert | -2/Section 7 | Z-intel K-01 Serf | -2/Section 7 | Z-intel X-77 Beamer | -2/Section 7 | Z-intel H-77 Assassin | -2/Section 7 | Z-intel E-15 Imp | -2/Section 7 | Z-intel R-10 Processor | -2/Section 7 | Z-intel A-02 Transporter | -1/Access | Z-intel A-27 Freighter | -1/Access | Z-intel A-15 Conveyor | -1/Access | Z-intel R-06 Scavenger | -1/Access | Z-intel Fabricated ------------ Antigrav System | x2 | -7/Factory | Preloaded Antigrav System | x2 | -7/Factory | Authchip Hvy. Ion Cannon | x2 | -7/Factory | Preloaded Lrn. Phase Cannon | x1 | -7/Factory | Authchip Adv. System Restoration Module | x2 | -6/Factory | Authchip Cld. Aerolev Unit | x1 | -6/Factory | Authchip Cld. Aerolev Unit | x1 | -6/Factory | Authchip Cld. Aerolev Unit | x1 | -6/Factory | Authchip Cld. Aerolev Unit | x1 | -6/Factory | Authchip Cld. Aerolev Unit | x1 | -6/Factory | Authchip Exp. Targeting Computer | x1 | -5/Factory Exp. Heat Sink | x1 | -4/Factory | Authchip Exp. Cooling System | x1 | -4/Factory | Authchip Cld. Antigrav System | x1 | -3/Research | Authchip Cld. Antigrav System | x1 | -3/Research | Authchip Cld. Antigrav System | x1 | -3/Research | Authchip Cld. Antigrav System | x1 | -3/Armory | Authchip Cld. Antigrav System | x1 | -3/Armory | Authchip Enh. Nova Cannon | x2 | -3/Armory | Preloaded Cld. Antigrav System | x1 | -3/Armory | Authchip Cld. Antigrav System | x1 | -3/Armory Adv. Signal Interpreter | x2 | -2/Research | Authchip Exp. Power Amplifier | x1 | -1/Access | Authchip Repaired ---------- Xenon Bombardment Thruster | 16% | -7/Factory Adv. System Restoration Module | 10% | -7/Factory | Broken Studied --------- None Alien Tech Used ----------------- Integrated Reactor Core Expander Core Reset Matrix Core Regenerator Core Membrane Integrity Redistributor LRC Energy Well LRC Inertial Stabilizer Achievements -------------- Botjacking Consequences Hot Stuff Jackpot Junior Dev King Drone Morally Flexible Suspicious Challenges ------------ None RPGLIKE | -11 -10 -10 -9 -9 -9 -8 -8 -8 -7 -7 -7 -7 -7 -7 -6 -6 -6 -6 -6 -6 -6 -6 -6 -5 -5 -5 -5 -4 -4 -4 -4 -4 -3 -3 -3 -3 -2 -2 -2 -1 -1 --------- Run | Yrd Mat Min Mat Min Exi Min Mat Gar Fac Was Fac Low Low Zio Pro Fac Was Fac Ext Cet Arc Hub Gar Fac Upp Upp Zhi Pro Fac Upp Upp War Pro Res Arm Lab Res Qua Sec Acc Com Levels Raised 37 | . 2 . 4 . . 1 3 2 2 . 3 . . . 1 1 . 1 . 1 . . . 1 . . . 1 2 . . 1 . 2 2 . 2 1 . 1 3 XP Earned 58986 | 3000 3288 1000 4921 500 350 1700 4633 2053 3845 121 3797 311 137 128 780 2205 46 473 1184 204 122 397 486 808 358 232 152 1632 1849 141 324 900 1205 2917 2050 702 3168 434 659 1297 4477 XP Spent 54925 | 3000 850 . 5050 . . 2060 . 320 5670 . 4245 2825 . . . 3925 . 2600 . . . . . 1500 . . . . . . . 8400 . 3500 . 4000 2880 . . . 4100 Upgrades 80 | 10 3 . 6 . . 6 . 4 7 . 7 8 . . . 12 . 1 . . . . . 1 . . . . . . . 4 . 1 . 2 7 . . . 1 Power Slot 1 | . . . 1 . . . . . . . . . . . . . . . . . . . . . . . . . . . . . . . . . . . . . . Propulsion Slot 5 | 1 . . 2 . . . . . . . 1 . . . . . . . . . . . . . . . . . . . . 1 . . . . . . . . . Utility Slot 13 | 1 . . 2 . . 1 . . 2 . 1 . . . . . . 1 . . . . . . . . . . . . . 2 . 1 . 1 . . . . 1 Weapon Slot 2 | 1 . . . . . . . . . . . . . . . . . . . . . . . . . . . . . . . . . . . . 1 . . . . Core Integrity 20 | . . . . . . 4 . 4 . . 3 . . . . 9 . . . . . . . . . . . . . . . . . . . . . . . . . Heat Dissipation 6 | . . . . . . . . . 2 . 2 . . . . . . . . . . . . . . . . . . . . . . . . . 2 . . . . Energy Generation 2 | . . . . . . . . . 2 . . . . . . . . . . . . . . . . . . . . . . . . . . . . . . . . Energy Storage 1 | . . . . . . . . . . . . . . . . . . . . . . . . . . . . . . . . . . . . 1 . . . . . Mass Support 2 | . 1 . . . . . . . . . . . . . . . . . . . . . . . . . . . . . . 1 . . . . . . . . . Inventory Capacity 6 | . 2 . 1 . . . . . 1 . . . . . . 1 . . . . . . . 1 . . . . . . . . . . . . . . . . . Sight Range 2 | . . . . . . . . . . . . . . . . . . . . . . . . . . . . . . . . . . . . . 2 . . . . Sensor Range 2 | . . . . . . . . . . . . 2 . . . . . . . . . . . . . . . . . . . . . . . . . . . . . Ranged Accuracy 3 | 1 . . . . . 1 . . . . . 1 . . . . . . . . . . . . . . . . . . . . . . . . . . . . . Hack Attack % 3 | 1 . . . . . . . . . . . 1 . . . . . . . . . . . . . . . . . . . . . . . . 1 . . . . Hack Defense % 3 | 1 . . . . . . . . . . . 1 . . . . . . . . . . . . . . . . . . . . . . . . 1 . . . . KI Resistance % 3 | 1 . . . . . . . . . . . 1 . . . 1 . . . . . . . . . . . . . . . . . . . . . . . . . TH Resistance % 3 | 1 . . . . . . . . . . . 1 . . . 1 . . . . . . . . . . . . . . . . . . . . . . . . . KI Damage % 1 | 1 . . . . . . . . . . . . . . . . . . . . . . . . . . . . . . . . . . . . . . . . . TH Damage % 2 | 1 . . . . . . . . . . . 1 . . . . . . . . . . . . . . . . . . . . . . . . . . . . . Protomatter Created 13386 | . 414 77 366 2 . 83 254 289 380 87 885 225 71 . 12 274 . 175 237 191 72 322 433 126 90 40 . 219 267 . 170 392 233 1131 794 . 1376 228 550 197 2724 Integrity Restored 30026 | . 399 231 723 21 . 249 447 726 861 537 1870 423 213 . 219 432 519 525 1801 573 210 657 843 327 334 120 . 693 920 . 254 372 699 2362 2407 . 2350 243 1358 176 4932 Core 25756 | . 314 231 568 21 . 249 447 726 861 537 1545 423 213 . 219 432 519 525 1372 573 126 508 650 246 262 120 . 678 653 . 206 372 699 1804 1951 . 2073 243 1253 142 3995 Parts 4270 | . 85 . 155 . . . . . . . 325 . . . . . . . 429 . 84 149 193 81 72 . . 15 267 . 48 . . 558 456 . 277 . 105 34 937 Protomatter Decayed 3910 | . 63 . 184 . . . 57 . 35 . 464 106 . . 49 4 . . 283 . . 7 97 9 18 . . 65 12 63 71 376 . 305 380 . 381 . 14 133 734 Game ------ Seed SiegeConstructStorage Manual? 0 Play Time 09:26:56 Cumulative 335.3 hours Start 2025.11.24 @ 18:48:24 End 2025.11.27 @ 17:49:47 Sessions 7 Manual Loads 0 Difficulty Rogue Special Mode Winter2019/RPGLIKE Game No. 133 Rogue 85 Adventurer 44 Explorer 4 Win Type - Total 11 Types 4/3/0/1/1/1/0/1/0/0 Lore% 73 Gallery% 71 Achievement% 51 Wizard Run 0 Options --------- Layout 0 ASCII 0 Keyboard 0 Movement Arrows Keybinds 0 Fullscreen 2 Font 18/SmallcapsGlow Map View 76x50 Zoom Use 0% Tactical HUD 1 Map Filters NONE Filters NONE Steam 1 RUN: eb0fd48d-b02f-417f-9320-e61eff32e6b9